{"text_format":"1","workbook":"xlsx","n_sheets":8,"sheets":["PORTADA","Formato-Hechos VS","Instructivo-Hechos VS","Formato-Accidentes","Instructivo-Accidentes","Formato-Fallecimientos","Instructivo-Fallecimientos","LISTADOS"],"not_rendered":{"charts":0,"images":9,"macros":1,"external_links":0,"defined_names":44,"comments":0,"pivot_tables":0},"unopened":[],"bounds":{"document_bytes":16777216,"sheet_cells":100000,"rows_first":2000,"rows_last":500,"rows_between":2000,"halvings":0,"cell_chars":16384,"cell_head_chars":4096},"cells_cut":0,"cells_raw":0,"read":"whole","date_system":"1900"}

{"sheet":"PORTADA","index":0,"n_rows":5,"n_cols":12,"rows_kept":5,"cut":false,"hidden":false,"merged":[[0,2,2,9],[3,0,3,11],[2,10,2,11],[4,0,4,11]]}
[null,null,"PROCESO\nPROMOCIÓN Y PREVENCIÓN\n\nFORMATO DE REPORTE DE PRESUNTOS HECHOS DE VIOLENCIAS, ACCIDENTES Y FALLECIMIENTOS DE LOS USUARIOS DE LOS SERVICIOS DE PRIMERA INFANCIA",null,null,null,null,null,null,null,"F30.MO12.PP","2022-04-12"]
[null,null,null,null,null,null,null,null,null,null,"Versión 1","Página 1 de 1"]
[null,null,null,null,null,null,null,null,null,null,"Clasificación de la Información:\nClasificada"]
[]
["Antes de imprimir este documento… piense en el medio ambiente!\nCualquier copia impresa de este documento se considera como COPIA NO CONTROLADA\n LOS DATOS PROPORCIONADOS SERÁN TRATADOS DE ACUERDO A LA POLÍTICA DE TRATAMIENTO DE DATOS PERSONALES DEL ICBF Y A LA LEY 1581 DE 2012"]

{"sheet":"Formato-Hechos VS","index":1,"n_rows":57,"n_cols":53,"rows_kept":57,"cut":false,"hidden":false,"merged":[[4,6,5,6],[4,7,5,7],[4,8,5,8],[4,9,5,9],[4,21,5,21],[4,10,5,10],[4,11,5,11],[4,12,5,12],[4,13,5,13],[4,19,5,19],[4,20,5,20],[4,14,5,14],[4,15,5,15],[4,16,5,16],[4,17,5,17],[4,18,5,18],[4,1,5,1],[4,2,5,2],[4,3,5,3],[4,4,5,4],[4,5,5,5],[56,1,56,52],[4,22,4,27],[0,1,2,3],[0,4,2,50],[2,51,2,52],[4,50,5,50],[4,51,5,51],[4,52,5,52],[4,28,4,33],[4,34,5,34],[4,35,5,35],[4,36,5,36],[4,44,5,44],[4,45,5,45],[4,49,5,49],[4,46,5,46],[4,43,5,43],[4,47,5,47],[4,48,5,48],[4,37,4,41],[4,42,5,42]]}
[null,null,null,null,"PROCESO\nPROMOCIÓN Y PREVENCIÓN\n\nFORMATO DE REPORTE DE PRESUNTOS HECHOS DE VIOLENCIAS, ACCIDENTES Y FALLECIMIENTOS DE LOS USUARIOS DE LOS SERVICIOS DE PRIMERA INFANCIA",null,null,null,null,null,null,null,null,null,null,null,null,null,null,null,null,null,null,null,null,null,null,null,null,null,null,null,null,null,null,null,null,null,null,null,null,null,null,null,null,null,null,null,null,null,null,"F30.MO12.PP","2022-04-12"]
[null,null,null,null,null,null,null,null,null,null,null,null,null,null,null,null,null,null,null,null,null,null,null,null,null,null,null,null,null,null,null,null,null,null,null,null,null,null,null,null,null,null,null,null,null,null,null,null,null,null,null,"Versión 1","Página 1 de 1"]
[null,null,null,null,null,null,null,null,null,null,null,null,null,null,null,null,null,null,null,null,null,null,null,null,null,null,null,null,null,null,null,null,null,null,null,null,null,null,null,null,null,null,null,null,null,null,null,null,null,null,null,"Clasificación de la Información:\nClasificada"]
[]
[null,"No.","1. NIT de la EAS","2. Nombre completo de la EAS","3. N° de contrato o convenio","4. Regional ","5. Centro Zonal ","6. Fecha del reporte de la UDS a la EAS\n(dd/mm/aaaa)","7. Modalidad en la que se atiende el usuario (a) ","8. Servicio en la que se atiende el usuario (a)  ","9. Código de la UDS a la que asiste el usuario (a) ","10. Nombre completo de la UDS a la que asiste el usuario (a)","11. Tipo de usuario (a)  ","12. Nombre (s) y apellido (s) completo (s) del usuario (a) ","13. Documento de identidad del usuario (a) ","14. Número del Documento de identidad del usuario (a) ","15. Fecha de nacimiento \n(dd/mm/aaaa)","16. Edad \n(con respecto a la fecha de reporte)","17. Sexo","18. Étnia \nAutoreconocimiento o reconocimiento familiar ","19. Municipio / Vereda / Centro donde reside ","20. Fecha del inicio de la atención en la UDS/UCA/UA \n(dd/mm/aaaa)","21. ¿Qué tipo o tipos de presunta violencia contra niñas y niños se presentó?",null,null,null,null,null,"22. ¿Qué tipo o tipos de presunta violencia contra la mujer gestante se presentó?",null,null,null,null,null,"23. Si selecciono \"1. Violencia Sexual\"¿Cuál es la presunta forma o tipológia de violencia sexual contra niñas, niños y mujeres gestantes?","24. ¿La presunta violencia fue realizada por?","24.1 Si en la pregunta anterior selecciono \"9, Otro\", mencione cuál.","25. ¿Qué tipo o tipos de presunta inobservancia hacia niñas, niños o mujeres gestantes se presentó?",null,null,null,null,"26: ¿Qué entidad o sector está involucrado en la presunta inobservancia?","26.1 Si en la pregunta anterior selecciono \"15, Otro\", mencione cuál.","27. ¿La EAS o UDS/UCA/UA, activó la ruta de atención en casos de amenaza, vulneración o inobservancia de derechos?","28. Si la respuesta anterior es SI, ¿En cuál Entidad o Institución realizó la activación de ruta de atención en casos de amenaza, vulneración o inobservancia de derechos contra niñas, niños y mujeres gestantes?","28.1 Si en la pregunta anterior selecciono \"12, Otro\", mencione cuál.","29. ¿El niño, niña o mujer gestante recibió atención por parte del sector o endidad competente?","30. ¿Se ha realizado seguimiento de la situación en el marco de los comités técnicos operativos?","31. Describa de forma detallada las acciones realizadas por la EAS al recibir el reporte de la UD/UCA/UA ","32.  Describa de forma detallada las acciones realizadas por la UDS/UCA/UA","33. Acciones realizadas por la familia, cuidadores o mujer gestante","34. Observaciones adicionales que puedan ser útiles al supervisor(a) de contrato y/o convenio "]
[null,null,null,null,null,null,null,null,null,null,null,null,null,null,null,null,null,null,null,null,null,null,"1. VIOLENCIA SEXUAL ","2. VIOLENCIA PSICOLÓGICA","3. VIOLENCIA FÍSICA","4. OMISIÓN O NEGLIGENCIA","5. CASTIGO FÍSICO","6. SÍNDROME DE BEBE ZARANDEADO","1. VIOLENCIA SEXUAL ","2. VIOLENCIA PSICOLÓGICA","3. VIOLENCIA FÍSICA","4. VIOLENCIA ECONÓMICA Y PATRIMONIAL","5.RIESGO DE FEMINICIDIO","6. VIOLENCIA EN EL CONFLICTO ARMADO",null,null,null,"1. Documento de Identidad","2. Esquema de vacunación ","3. Atención en Salud","4. Educación ","5. Otra, ¿cuál?"]
[null,1,null,null,null,null,null,null,null,null,null,null,null,null,null,null,null,{"$f":"DATEDIF(Q7,H7,\"y\") & \" años, \" & DATEDIF(Q7,H7,\"ym\") & \" meses, \" &DATEDIF(Q7,H7,\"md\")& \" días\"","v":"0 años, 0 meses, 0 días"}]
[null,2,null,null,null,null,null,null,null,null,null,null,null,null,null,null,null,{"$f":"DATEDIF(Q8,H8,\"y\") & \" años, \" & DATEDIF(Q8,H8,\"ym\") & \" meses, \" &DATEDIF(Q8,H8,\"md\")& \" días\"","v":"0 años, 0 meses, 0 días"}]
[null,3,null,null,null,null,null,null,null,null,null,null,null,null,null,null,null,"0 años, 0 meses, 0 días"]
[null,4,null,null,null,null,null,null,null,null,null,null,null,null,null,null,null,"0 años, 0 meses, 0 días"]
[null,5,null,null,null,null,null,null,null,null,null,null,null,null,null,null,null,"0 años, 0 meses, 0 días"]
[null,6,null,null,null,null,null,null,null,null,null,null,null,null,null,null,null,"0 años, 0 meses, 0 días"]
[null,7,null,null,null,null,null,null,null,null,null,null,null,null,null,null,null,"0 años, 0 meses, 0 días"]
[null,8,null,null,null,null,null,null,null,null,null,null,null,null,null,null,null,"0 años, 0 meses, 0 días"]
[null,9,null,null,null,null,null,null,null,null,null,null,null,null,null,null,null,"0 años, 0 meses, 0 días"]
[null,10,null,null,null,null,null,null,null,null,null,null,null,null,null,null,null,"0 años, 0 meses, 0 días"]
[null,11,null,null,null,null,null,null,null,null,null,null,null,null,null,null,null,"0 años, 0 meses, 0 días"]
[null,12,null,null,null,null,null,null,null,null,null,null,null,null,null,null,null,"0 años, 0 meses, 0 días"]
[null,13,null,null,null,null,null,null,null,null,null,null,null,null,null,null,null,"0 años, 0 meses, 0 días"]
[null,14,null,null,null,null,null,null,null,null,null,null,null,null,null,null,null,"0 años, 0 meses, 0 días"]
[null,15,null,null,null,null,null,null,null,null,null,null,null,null,null,null,null,"0 años, 0 meses, 0 días"]
[null,16,null,null,null,null,null,null,null,null,null,null,null,null,null,null,null,"0 años, 0 meses, 0 días"]
[null,17,null,null,null,null,null,null,null,null,null,null,null,null,null,null,null,"0 años, 0 meses, 0 días"]
[null,18,null,null,null,null,null,null,null,null,null,null,null,null,null,null,null,"0 años, 0 meses, 0 días"]
[null,19,null,null,null,null,null,null,null,null,null,null,null,null,null,null,null,"0 años, 0 meses, 0 días"]
[null,20,null,null,null,null,null,null,null,null,null,null,null,null,null,null,null,"0 años, 0 meses, 0 días"]
[null,21,null,null,null,null,null,null,null,null,null,null,null,null,null,null,null,"0 años, 0 meses, 0 días"]
[null,22,null,null,null,null,null,null,null,null,null,null,null,null,null,null,null,"0 años, 0 meses, 0 días"]
[null,23,null,null,null,null,null,null,null,null,null,null,null,null,null,null,null,"0 años, 0 meses, 0 días"]
[null,24,null,null,null,null,null,null,null,null,null,null,null,null,null,null,null,"0 años, 0 meses, 0 días"]
[null,25,null,null,null,null,null,null,null,null,null,null,null,null,null,null,null,"0 años, 0 meses, 0 días"]
[null,26,null,null,null,null,null,null,null,null,null,null,null,null,null,null,null,"0 años, 0 meses, 0 días"]
[null,27,null,null,null,null,null,null,null,null,null,null,null,null,null,null,null,"0 años, 0 meses, 0 días"]
[null,28,null,null,null,null,null,null,null,null,null,null,null,null,null,null,null,"0 años, 0 meses, 0 días"]
[null,29,null,null,null,null,null,null,null,null,null,null,null,null,null,null,null,"0 años, 0 meses, 0 días"]
[null,30,null,null,null,null,null,null,null,null,null,null,null,null,null,null,null,"0 años, 0 meses, 0 días"]
[null,31,null,null,null,null,null,null,null,null,null,null,null,null,null,null,null,"0 años, 0 meses, 0 días"]
[null,32,null,null,null,null,null,null,null,null,null,null,null,null,null,null,null,"0 años, 0 meses, 0 días"]
[null,33,null,null,null,null,null,null,null,null,null,null,null,null,null,null,null,"0 años, 0 meses, 0 días"]
[null,34,null,null,null,null,null,null,null,null,null,null,null,null,null,null,null,"0 años, 0 meses, 0 días"]
[null,35,null,null,null,null,null,null,null,null,null,null,null,null,null,null,null,"0 años, 0 meses, 0 días"]
[null,36,null,null,null,null,null,null,null,null,null,null,null,null,null,null,null,"0 años, 0 meses, 0 días"]
[null,37,null,null,null,null,null,null,null,null,null,null,null,null,null,null,null,"0 años, 0 meses, 0 días"]
[null,38,null,null,null,null,null,null,null,null,null,null,null,null,null,null,null,"0 años, 0 meses, 0 días"]
[null,39,null,null,null,null,null,null,null,null,null,null,null,null,null,null,null,"0 años, 0 meses, 0 días"]
[null,40,null,null,null,null,null,null,null,null,null,null,null,null,null,null,null,"0 años, 0 meses, 0 días"]
[null,41,null,null,null,null,null,null,null,null,null,null,null,null,null,null,null,"0 años, 0 meses, 0 días"]
[null,42,null,null,null,null,null,null,null,null,null,null,null,null,null,null,null,"0 años, 0 meses, 0 días"]
[null,43,null,null,null,null,null,null,null,null,null,null,null,null,null,null,null,"0 años, 0 meses, 0 días"]
[null,44,null,null,null,null,null,null,null,null,null,null,null,null,null,null,null,"0 años, 0 meses, 0 días"]
[null,45,null,null,null,null,null,null,null,null,null,null,null,null,null,null,null,"0 años, 0 meses, 0 días"]
[null,46,null,null,null,null,null,null,null,null,null,null,null,null,null,null,null,"0 años, 0 meses, 0 días"]
[null,47,null,null,null,null,null,null,null,null,null,null,null,null,null,null,null,"0 años, 0 meses, 0 días"]
[null,48,null,null,null,null,null,null,null,null,null,null,null,null,null,null,null,"0 años, 0 meses, 0 días"]
[null,49,null,null,null,null,null,null,null,null,null,null,null,null,null,null,null,"0 años, 0 meses, 0 días"]
[null,50,null,null,null,null,null,null,null,null,null,null,null,null,null,null,null,"0 años, 0 meses, 0 días"]
[null,"Antes de imprimir este documento… piense en el medio ambiente!\nCualquier copia impresa de este documento se considera como COPIA NO CONTROLADA\n LOS DATOS PROPORCIONADOS SERÁN TRATADOS DE ACUERDO A LA POLÍTICA DE TRATAMIENTO DE DATOS PERSONALES DEL ICBF Y A LA LEY 1581 DE 2012"]

{"sheet":"Instructivo-Hechos VS","index":2,"n_rows":103,"n_cols":12,"rows_kept":103,"cut":false,"hidden":false,"merged":[[102,0,102,11],[94,3,94,7],[98,0,98,11],[99,0,99,11],[101,0,101,11],[96,0,96,11],[97,0,97,11],[84,3,84,7],[85,3,85,7],[86,3,86,7],[87,3,87,7],[92,3,92,7],[85,2,87,2],[88,3,88,7],[89,3,89,7],[90,3,90,7],[91,3,91,7],[88,2,91,2],[27,0,27,11],[42,0,42,11],[83,0,83,11],[100,0,100,11],[43,0,43,11],[44,0,44,11],[45,0,45,11],[48,0,48,11],[46,0,46,11],[47,0,47,11],[49,0,49,11],[33,0,33,11],[34,0,34,11],[28,0,28,11],[93,3,93,7],[95,3,95,7],[92,2,93,2],[36,0,36,11],[37,0,37,11],[38,0,38,11],[39,0,39,11],[41,0,41,11],[40,0,40,11],[29,0,29,11],[26,0,26,11],[15,0,15,11],[16,0,16,11],[17,0,17,11],[18,0,18,11],[19,0,19,11],[20,0,20,11],[21,0,21,11],[22,0,22,11],[23,0,23,11],[24,0,24,11],[25,0,25,11],[14,0,14,11],[0,0,2,1],[0,2,2,9],[2,10,2,11],[6,0,6,11],[7,0,7,11],[8,0,8,11],[9,0,9,11],[10,0,10,11],[11,0,11,11],[12,0,12,11],[13,0,13,11],[30,0,30,11],[31,0,31,11],[32,0,32,11],[35,0,35,11],[68,3,68,7],[78,2,79,2],[78,3,78,7],[79,3,79,7],[80,3,80,7],[74,3,74,7],[75,3,75,7],[76,3,76,7],[77,3,77,7],[67,3,67,7],[69,3,69,7],[70,3,70,7],[81,3,81,7],[82,0,82,11],[66,0,66,11],[50,0,50,11],[51,0,51,11],[52,0,52,11],[53,0,53,11],[54,0,54,11],[55,0,55,11],[56,0,56,11],[57,0,57,11],[58,0,58,11],[59,0,59,11],[60,0,60,11],[65,0,65,11],[61,0,61,11],[62,0,62,11],[63,0,63,11],[64,0,64,11],[71,2,73,2],[71,3,71,7],[72,3,72,7],[73,3,73,7],[74,2,77,2]]}
[null,null,"PROCESO\nPROMOCIÓN Y PREVENCIÓN\n\nFORMATO DE REPORTE DE PRESUNTOS HECHOS DE VIOLENCIAS, ACCIDENTES Y FALLECIMIENTOS DE LOS USUARIOS DE LOS SERVICIOS DE PRIMERA INFANCIA",null,null,null,null,null,null,null,"F30.MO12.PP","2022-04-12"]
[null,null,null,null,null,null,null,null,null,null,"Versión 1","Página 1 de 1"]
[null,null,null,null,null,null,null,null,null,null,"Clasificación de la Información:\nClasificada"]
[]
[]
[]
["REPORTE DE PRESUNTOS HECHOS DE VIOLENCIA\nINSTRUCTIVO DE DILIGENCIAMIENTO"]
["Este formato busca unificar las acciones de reporte que deben adelantarse en caso de presentarse presuntos casos de violencia, lesiones y/o accidentes y fallecimientos de usuarios de los servicios de primera infancia. Con el fin de integrar lo dispuesto en los manuales operativos, la guía para la gestión de riesgos en la primera infancia y minutas contractuales se establecen acciones específicas para la notificación a la Dirección de Primera Infancia del ICBF ante cualquier diagnóstico, causa o motivo, dentro o fuera de la unidad de servicio. "]
["1. NIT De la EAS: Escriba el número de identificación tributaria sin código de verificación"]
["2. Nombre completo de la EAS: Escriba el nombre del operador como se encuentra registrado en Cuéntame"]
["3. N° de contrato o convenio: Escriba el número como se encuentra registrado en Cuéntame"]
["4. Regional: Seleccione la regional a la que pertenece"]
["5. Centro zonal: Seleccione el centro zonal al que pertenece "]
["6. Fecha del reporte de la UDS a la EAS: Escriba la fecha en formato DD/MM/AAAA en la que la UDS reporto a la EAS"]
["7. Modalidad en la que se atiende el usuario: Seleccione la modalidad de atención a la que pertenece el usuario"]
["8. Servicio en la que se atiende el usuario: Seleccione el servicio en el que se atiende el usuario"]
["9. Código de la UDS a la que asiste el usuario: Escriba el código de la UDS a la que asiste el usuario como se encuentra registrado en Cuéntame "]
["10. Nombre completo de la UDS a la que asiste el usuario: Escriba el nombre completo en mayúscula de la UDS a la que asiste el usuario como se encuentra registrado en Cuéntame"]
["11. Tipo de usuario: Seleccione el tipo de usuario que es atendido en la UDS. Tenga en cuenta que, en el caso de las mujeres gestantes ellas, deben desvincularse del servicio en el Sistema de Información Cuéntame, una vez ocurra el parto para vincular al niño o niña recién nacido; si aún éste último no cuenta con el documento de identidad el Sistema permite la vinculación de un usuario sin documento, si este es el caso. Una vez se tenga el registro civil, se debe actualizar en el Sistema de Información Cuéntame."]
["12. Nombre (s) y apellido (s) completo (s) del usuario: Escriba el nombre completo en mayúscula del usuario atendido"]
["13. Documento de identidad del usuario: Seleccione el tipo de documento de identidad del usuario atendido"]
["14. Número del Documento de identidad del usuario: Escriba sin puntos ni comas el número de documento de identidad del usuario"]
["15. Fecha de nacimiento: Escriba la fecha de nacimiento de usuario en el formato DD/MM/AAAA"]
["16. Edad: Calcule y escriba la edad del usuario (esta el sistema la calcula automáticamente)"]
["17. Sexo: Seleccione el sexo del usuario: Mujer: personas cuyas características genéticas, morfológicas y endocrinas le identifican como hembra, según la clasificación biológica de la especie humana; Hombre: personas cuyas características genéticas, morfológicas y endocrinas le identifican como macho, según la clasificación biológica de la especie humana; o Intersexual: personas que presentan simultáneamente características genéticas, congénitas, endocrinas o morfológicas de hembra y macho. (SIVIGE 2016:71) "]
["18. Etnia Autorreconocimiento o reconocimiento familiar: Seleccione la etnia a la que pertenece el usuario (El mismo que registra en la ficha de caracterización)"]
["19. Municipio / Vereda / Centro donde reside: Escriba el nombre Municipio / Vereda / Centro poblado donde reside el usuario"]
["20. Fecha del inicio de la atención en la UDS/UCA/UA: Escriba en formato DD/MM/AAAA la fecha del inicio de la atención en la UDS/UCA/UA (contrato o convenio vigente)"]
["21. ¿Qué tipo de presunta violencia contra niñas y niños se presentó?: Indique Si o NO según correspondan de acuerdo con los siguientes criterios. Fuente: Lineamiento técnico para la atención a niños, niñas y adolescentes, con derechos amenazados o vulnerados, víctimas de violencia sexual. ICBF.V2. 2018."]
["1. Violencia Sexual contra niñas, niños y adolescentes: Todo acto o comportamiento de tipo sexual ejercido sobre un niño, niña o adolescente, utilizando la fuerza o cualquier forma de coerción física, psicológica o emocional, aprovechando las condiciones de indefensión, de desigualdad y las relaciones de poder existentes entre víctima y agresor. "]
["2. Violencia Psicológica: Toda acción u omisión destinada a degradar, discriminar o controlar las acciones, comportamientos, creencias y decisiones de los niños, niñas y adolescentes, a través de formas como: humillar, rechazar, aterrorizar, aislar, ser permisivos, restringir la autonomía, sobre exigir, instrumentalizar en conflictos entre las figuras parentales, exponer a situaciones de violencia de pareja u otros miembros del hogar o cualquier otra conducta que implique un perjuicio en la salud mental, o el desarrollo personal."]
["3. Violencia Física: Toda acción a través del uso de la fuerza física, la cual puede causar dolor malestar, lesiones, dañosa la salud, o al desarrollo del niño, niña o adolescente; la violencia física se puede ejercer a través de manos o con cualquier parte del cuerpo, objetos, armas, sustancias, agentes químicos u objetos que producen quemaduras, entre otras formas."]
["4. Omisión o negligencia: Se refiere a la falta de protección y cuidado mínimo del niño, niña o adolescente por parte de progenitores o personas encargadas de su cuidado."]
["5. Castigo Físico: Contiene dos elementos: “El primero consiste en la intención de corregir, disciplinar o castigar el comportamiento de la niña, niño o adolescente. El segundo elemento de carácter objetivo, se configura con el uso de la fuerza física. “El Castigo Corporal parte de la falsa idea de que contribuye a la formación de los niños, niñas y adolescentes, siendo por el contrario, una expresión de violencia”.   "]
["6. Síndrome de Bebe Zarandeado: Es un tipo de agresión física en el que se sacude fuertemente a una o un bebé, pudiendo producir graves lesiones e incluso en algunas ocasiones llevar hasta a la muerte. Este síndrome se presenta porque un adulto vuelca su frustración o ira en el bebé, generalmente porque éste (a) no cesa de llorar o está muy inquieto (a)."]
["22. ¿Qué tipo o tipos de presunta violencia contra la mujer gestante se presentó?:  Indique Si o NO según correspondan de acuerdo con los siguientes criterios. Fuente: Ley 1257 de 2008. “Por la cual se dictan normas de sensibilización, prevención y sanción de formas de violencia y discriminación contra las mujeres\"."]
["1. Violencia Sexual contra Mujeres: Cualquier acción que implique la vulneración en todas sus formas, con o sin acceso genital, del derecho de la mujer a decidir voluntariamente acerca de su vida sexual o reproductiva a través de amenazas, coerción, uso de la fuerza o intimidación, incluyendo la violación dentro del matrimonio o de otras relaciones vinculares o de parentesco, exista o no convivencia, así como la prostitución forzada, explotación, esclavitud, acoso, abuso sexual y trata de mujeres."]
["2. Violencia Psicológica: Es una forma de abuso que no utiliza la violencia física, pero produce cicatrices muy dolorosas, Causa daño emocional, disminución de la autoestima y perjudica el pleno desarrollo personal. Por ejemplo, cuando una persona descalifica, desvaloriza o humilla a una mujer, en la intimidad o frente a otras personas."]
["3. Violencia Física: Es la forma más evidente de violencia. La que se emplea contra el cuerpo de la mujer produciendo dolor, daño o riesgo de producirlo y cualquier otra forma de maltrato agresión que afecte su integridad física."]
["4. Violencia económica y patrimonial: Se produce cuando a la mujer se le niega el dinero necesario para satisfacer las necesidades básicas de supervivencia de la familia, especialmente de los hijos, o bien cuando una persona presiona a la mujer para que le entregue su dinero, bajo amenaza de daño físico o emocional."]
["5. Riesgo de Feminicidio: El feminicidio ha cobrado carta de naturaleza para significar el hecho de dar muerte a una mujer por el hecho de ser mujer, implica características distintas y se constituye en un crimen demostrativo como la máxima expresión de la violencia extrema infligida a las mujeres. Como afirman los instrumentos internacionales y regionales relativos con la violencia contra la mujer, dicha violencia sus causas en las históricas relaciones desiguales de poder entre hombres y mujeres. Fuente: (Rosa Linda Fregoso y Cynthia Bejarano (Editoras) feminicidio en América Latina, 2011."]
["6. Violencia en el conflicto armando: La violencia durante conflictos armados se produce a través de ataques centrados en la mujeres y niñas cuyos cuerpos se constituyen en territorio de disputa y son utilizados como armas de guerra, motines y moneda de cambio."]
["23.  Si en las preguntas 21 y 22  seleccionó \"1. Violencia Sexual\"¿Cuál es la presunta forma o tipológia de violencia sexual contra niñas, niños y mujeres gestantes?: Seleccione una de las opciones teniendo en cuenta lo que establece el Lineamiento técnico programa especializado de atención a víctimas de violencia sexual:"]
["1. Acto sexual: Son todas aquellas acciones o comportamiento sexuales, donde no existe penetración del miembro viril por vía anal, vaginal u oral, y/o la penetración vaginal o anal con cualquier otra parte del cuerpo humano u otro objeto. (Grupo Técnico Coordinador del SIVIGE, 2017). De acuerdo al Código Penal Colombiano (Ley 599 de 2000) los actos sexuales configuran un delito contra la libertad, integridad y formación sexual cuando se hacen Con violencia o De manera abusiva."]
["2. Acceso carnal: De acuerdo con lo dispuesto en el artículo 212 del Código Penal, el acceso carnal se define como la penetración del miembro viril por vía anal, vaginal u oral, así como la penetración vaginal o anal de cualquier otra parte del cuerpo humano u otro objeto. Este configura un delito contra la libertad, integridad y formación sexual cuando se hace Con violencia o De manera abusiva. "]
["3. Explotación sexual comercial en niñas, niños y adolescentes: El Plan Nacional de Prevención y Erradicación de la Explotación Sexual Comercial de Niños, Niñas y Adolescentes, la Resolución 459 de 2012 del Ministerio de Salud y Protección Social define la explotación sexual de niñas, niños y adolescentes como: El abuso sexual cometido contra una persona menor de 18 años […] en el que a la víctima o a un tercero se le ofrece pagar o se le paga en dinero o en especie [donde] la víctima es tratada como mercancía u objeto, siendo vendida y comprada por parte de adultos(as), [reproduciendo] una forma actual de esclavitud (Párrafo 10)."]
["4. Matrimonio infantil y uniones tempranas: El matrimonio infantil es considerado como “cualquier matrimonio en el que al menos uno de los contrayentes sea menor de 18 años*, sin embargo, organismos internacionales como la UNICEF, han hecho una interpretación más extensiva y han considerado que las denominadas uniones tempranas también hacen parte de la problemática; por ser más frecuentes que el matrimonio formal y legal. Según los datos disponibles, la proporción de uniones no matrimoniales representa más del 60%** de todos los matrimonios y uniones tempranas en la Región de América Latina y el Caribe Recomendación General núm. 31 del Comité para la Eliminación de la Discriminación contra la Mujer y observación general núm. 18 del Comité de los Derechos del Niño sobre las prácticas nocivas, adoptadas de manera conjunta.\n*Recomendación General núm. 31 del Comité para la Eliminación de la Discriminación contra la Mujer y observación general núm. 18 del Comité de los Derechos del Niño sobre las prácticas nocivas, adoptadas de manera conjunta.\n**Informe ejecutivo conjunto UNICEF, ONU MUJERES, UNFPA “Acelerar las Acciones para Erradicar el Matrimonio Infantil y las Uniones Tempranas en América Latina y el Caribe”. Junio 2018"]
["5. Acoso sexual: \"Artículo 210 Acoso sexual. Ley 1257 de 2008. El que en beneficio suyo o de un tercero y valiéndose de su superioridad manifiesta o relaciones de autoridad o de poder, edad, sexo, posición laboral, social, familiar o económica, acose, persiga, hostigue o asedie física o verbalmente, con fines sexuales no consentidos, a otra persona. Ley 1257 de 2008.  “Por la cual se dictan normas de sensibilización, prevención y sanción de formas de violencia y discriminación contra las mujeres”"]
["6. Otras formas de violencia sexual: Se incluyen entre otras el embarazo forzado, desnudez forzada, aborto forzado, esterilización forzada , mutilación genital femenina, anticoncepción forzada. Mayor información LINEAMIENTO TÉCNICO PARA LA ATENCIÓN A NIÑOS, NIÑAS Y ADOLESCENTES, CON DERECHOS INOBSERVADOS, AMENAZADOS O VULNERADOS, VÍCTIMAS DE VIOLENCIA SEXUAL. V1. ICBF. "]
["24. ¿La presunta violencia fue realizada por?: Seleccione de la lista desplegable la opción que corresponda, teniendo en cuenta los siguientes criterios:\nHogar: se refiere a las personas o grupo de personas que ocupan la totalidad o parte de una vivienda y que se han asociado para compartir a dormida y/o comida. Pueden ser familiares o no entre sí. (DANE)\nFamilia: estructura social que se constituye a partir de un proceso que genera vínculos de consanguinidad o afinidad entre sus miembros (Política Pública Nacional de Apoyo y Fortalecimiento a las Familias), convivan o no dentro del mismo hogar. "]
["1. Integrante de la Familia que vive en el hogar: por ejemplo, el padre o la tía que vive en el mismo hogar (comparten la misma vivienda, la comida y la dormida)."]
["2. Integrante de la familia por fuera del hogar: por ejemplo, la abuela que vive en la misma vivienda, en el tercer piso, pero hace parte de otro hogar (no comparten ni la comida ni la dormida); o un amigo de la infancia que se considera como un hermano, es decir, como familia y vive en el en la misma vivienda, pero en un hogar diferente."]
["3. Otro integrante del hogar que no se considera familia: por ejemplo, el vecino del pueblo que se vino a estudiar a la ciudad y que por solidaridad, se recibe y vive en el mismo hogar."]
["4. Pareja de la mujer gestante: que no convive con ella."]
["5. Cónyuge o compañero/a permanente de la mujer gestante: que convive con ella."]
["6. Persona ajena al hogar: que no hace parte del hogar de la niña, niño o mujer gestante, no convive con él/ella, ni es miembro de su familia; puede ser una persona conocida o desconocida."]
["7. Talento Humano de la UDS/UCA/UA: que se encuentra vinculado al servivio de educación inicial."]
["8. Otra persona en la UDS/UCA/UA: que no está vinculada al servicio de educación inicial, pero que habita (para el caso de HCB), permanece o visita ocasionalmente el lugar donde funciona la UDS/UCA/UA."]
["9. Otro: que no corresponde a ninguna de las categorías anteriores."]
["10. Sin Información: no se cuenta con registro de quién es el presunto/a agresor/a."]
["25. ¿Qué tipo o tipos de presunta inobservancia hacia niñas, niños o mujeres gestantes se presentó? Indique Si o NO según corresponda, de acuerdo con los siguientes criterios. Fuente: Lineamiento técnico para la atención a niños, niñas y adolescentes, con derechos amenazados o vulnerados, víctimas de violencia sexual. ICBF.V2. 2018.\nInobservancia: Es la omisión o negación para acceder a algún servicio. Es responsabilidad de las autoridades administrativas, judiciales, agentes del Sistema Nacional de Bienestar Familiar (en el ámbito nacional, departamental y municipal), autoridades nacionales o extranjeras y personas en general, garantizar y permitir la atención en el ejercicio pleno de los derechos de las niñas, las niños y mujeres gestantes adolescentes, tanto nacionales como extranjeros que se encuentren en el territorio colombiano o fuera de él."]
["1. Documento de Identidad: niñas, niños o mujeres gestantes sin documento de identidad, por omisión o neagación de la Registraduría del Estado Civil o entidad  encargada en el territorio, en los niveles nacional, distrital o municipal."]
["2. Esquema de vacunación: niñas, niños o mujeres gestantes sin esquema de vacunación completo para la edad, por omisión o negación del Sistema General de Seguiridad Social en Salud."]
["3. Atención en Salud:  niñas y niños sin consultas de valoración integral en salud, o mujeres gestantes sin controles prenatales,  por omisión o negación del Sistema General de Seguiridad Social en Salud."]
["4. Educación:  niñas y niños sin tránsito entre modalidades y/o servicios de educación inicial o a educación formal, por omisión o negación del Sistema Educativo."]
["5. Otra; ¿cuál?: si la inobservancia identificada no se encuentra definida en los criterios anteriores, mencione cuál (por ejemplo, atención en salud visual u bucal)."]
["26: ¿Qué entidad o sector está involucrado en la presunta inobservancia?: En caso que la respuesta a la pregunta 25 sea SI, seleccione qué entidad o sector es responsable de la omisión o negación de acceso al/los servicio/s."]
[null,null,"Identidad","1. Registraduría del Estado Civil (Nacional, Departamental, Municipal) o Entidad que haga sus veces"]
[null,null,"Salud","2. EPS, IPS o programas y proyectos de salud de la red pública o privada "]
[null,null,"Educación","3. Tránsito a modalidad o servicio de educación inicial"]
[null,null,"Educación","4. Tránsito a educación formal"]
[null,null,"Protección","5. Instituto Colombiano de Bienestar Familiar (Defensorías de Familia)"]
[null,null,null,"6. Comisarías de Familia"]
[null,null,null,"7. Inspección de Policía"]
[null,null,"Justicia","8. Fiscalía"]
[null,null,null,"9. Unidad de respuesta Inmediata - URI"]
[null,null,null,"10. Policía Judicial"]
[null,null,null,"11. Policía Nacional"]
[null,null,"Ministerio Público","12. Personería del pueblo y personerías distritales o municipales"]
[null,null,null,"13. Procuraduría General de la Nación"]
[null,null,"Autoridad Tradicional","14. Autoridad Tradicional"]
[null,null,"Otro","15. Otro, ¿cuál?"]
["27. ¿La EAS o UDS/UCA/UA, activó la ruta de atención en casos de amenaza, vulneración o inobservancia de derechos?: Seleccione SI o NO según corresponda, según lo establecido en el \"Protocolo de Actuaciones ante Alertas de Amenaza, Vulneración o Inobservancia de Derechos en los Servicios de Atención a la Primera Infancia del ICBF\"."]
["28. Si la respuesta anterior es SI, ¿En cuál Entidad o Institución realizó la activación de ruta de atención en casos de amenaza, vulneración o inobservancia de derechos contra niñas, niños y mujeres gestantes?: En caso que la respuesta a la pregunta 27 sea SI, seleccione ante qué entidad, institución lo realizó."]
[null,null,"Salud","1. EPS, IPS o programas y proyectos de salud de la red pública o privada "]
[null,null,"Protección","2. Instituto Colombiano de Bienestar Familiar (Defensorías de Familia)"]
[null,null,null,"3. Comisarías de Familia"]
[null,null,null,"4. Inspección de Policía"]
[null,null,"Justicia","5. Fiscalía"]
[null,null,null,"6. Unidad de respuesta Inmediata - URI"]
[null,null,null,"7. Policía Judicial"]
[null,null,null,"8. Policía Nacional"]
[null,null,"Ministerio Público","9. Personería del pueblo y personerías distritales o municipales"]
[null,null,null,"10. Procuraduría General de la Nación"]
[null,null,"Autoridad Tradicional","11. Autoridad Tradicional"]
[null,null,"Otro","12. Otro, ¿cuál?"]
["29. ¿El niño, niña o mujer gestante recibió atención por parte del sector o endidad competente?: Seleccione SI o NO según corresponda"]
["30. ¿Se ha realizado seguimiento de la situación en el marco de los comités técnicos operativos?: Seleccione SI o NO según corresponda"]
["31. Describa de forma detallada las acciones realizadas por la EAS al recibir el reporte de la UDS/UCA/UA: Escriba de forma detallada las acciones realizadas por la EAS al recibir el reporte de la UDS/UCA/UA. En caso de no existir, colocar SIN INFORMACIÓN."]
["32. Acciones realizadas por la UDS/UCA/UA: Escriba de forma detallada las acciones realizadas por la UDS/UCA/UA. En caso de no existir, colocar SIN INFORMACIÓN."]
["33. Acciones realizadas por la familia, cuidadores o mujer gestante: Escriba de forma detallada las acciones realizadas por la familia y /o cuidadores. En caso de no existir, colocar SIN INFORMACIÓN."]
["34. Observaciones adicionales que puedan ser útiles al supervisor(a) de contrato y/o convenio: Escriba de forma detallada TODAS las observaciones adicionales que puedan ser útiles al Supervisor de contrato y/o convenio."]
["Antes de imprimir este documento… piense en el medio ambiente!\nCualquier copia impresa de este documento se considera como COPIA NO CONTROLADA\n "]

{"sheet":"Formato-Accidentes","index":3,"n_rows":56,"n_cols":33,"rows_kept":56,"cut":false,"hidden":false,"merged":[[2,31,2,32],[0,4,2,30],[55,1,55,32],[0,1,2,3]]}
[null,null,null,null,"PROCESO\nPROMOCIÓN Y PREVENCIÓN\n\nFORMATO DE REPORTE DE PRESUNTOS HECHOS DE VIOLENCIAS, ACCIDENTES Y FALLECIMIENTOS DE LOS USUARIOS DE LOS SERVICIOS DE PRIMERA INFANCIA",null,null,null,null,null,null,null,null,null,null,null,null,null,null,null,null,null,null,null,null,null,null,null,null,null,null,"F30.MO12.PP","2022-04-12"]
[null,null,null,null,null,null,null,null,null,null,null,null,null,null,null,null,null,null,null,null,null,null,null,null,null,null,null,null,null,null,null,"Versión 1","Página 1 de 1"]
[null,null,null,null,null,null,null,null,null,null,null,null,null,null,null,null,null,null,null,null,null,null,null,null,null,null,null,null,null,null,null,"Clasificación de la Información:\nClasificada"]
[]
[null,"No.","1. NIT de la EAS","2. Nombre completo de la EAS","3. N° de contrato o convenio","4. Regional ","5. Centro Zonal ","6. Fecha del reporte de la UDS a la EAS\n(dd/mm/aaaa)","7. Modalidad en la que se atiende el usuario (a) ","8. Servicio en la que se atiende el usuario (a)  ","9. Código de la UDS a la que asiste el usuario (a) ","10. Nombre completo de la UDS a la que asiste el usuario (a)","11. Tipo de usuario (a)  ","12. Nombre (s) y apellido (s) completo (s) del usuario (a) ","13. Documento de identidad del usuario (a) ","14. Número del Documento de identidad del usuario (a) ","15. Fecha de nacimiento \n(dd/mm/aaaa)","16. Edad \n(con respecto a la fecha de reporte)","17. Sexo","18. Étnia \nAutoreconocimiento o reconocimiento familiar ","19. Municipio / Vereda / Centro donde reside ","20. Fecha del inicio de la atención en la UDS/UCA/UA \n(dd/mm/aaaa)","21. Tipo de accidente","21.1 Si  en la pregunta anterior selecciono la opción \"Otro\", indique cual","22. ¿El accidente se considera grave?","23. Si en la preguntas anterior respondió SI, indique el tipo el tipo de lesión","24. Fecha en que ocurrio el accidente\n(dd/mm/aaaa)\n","25. ¿En qué lugar se presentó el accidente?","26. ¿Se dio la activación de la póliza?","27. Describa de forma detallada las acciones realizadas por la EAS al recibir el reporte de la UDS ","28. Acciones realizadas por la UDS/UCA/UA","29. Acciones realizadas por la familia y /o cuidadores ","30. Observaciones adicionales que puedan ser útiles al supervisor(a) de contrato y/o convenio "]
[null,1,null,null,null,null,null,null,null,null,null,null,null,null,null,null,null,{"$f":"DATEDIF(Q6,H6,\"y\") & \" años, \" & DATEDIF(Q6,H6,\"ym\") & \" meses, \" &DATEDIF(Q6,H6,\"md\")& \" días\"","v":"0 años, 0 meses, 0 días"}]
[null,2,null,null,null,null,null,null,null,null,null,null,null,null,null,null,null,{"$f":"DATEDIF(Q7,H7,\"y\") & \" años, \" & DATEDIF(Q7,H7,\"ym\") & \" meses, \" &DATEDIF(Q7,H7,\"md\")& \" días\"","v":"0 años, 0 meses, 0 días"}]
[null,3,null,null,null,null,null,null,null,null,null,null,null,null,null,null,null,"0 años, 0 meses, 0 días"]
[null,4,null,null,null,null,null,null,null,null,null,null,null,null,null,null,null,"0 años, 0 meses, 0 días"]
[null,5,null,null,null,null,null,null,null,null,null,null,null,null,null,null,null,"0 años, 0 meses, 0 días"]
[null,6,null,null,null,null,null,null,null,null,null,null,null,null,null,null,null,"0 años, 0 meses, 0 días"]
[null,7,null,null,null,null,null,null,null,null,null,null,null,null,null,null,null,"0 años, 0 meses, 0 días"]
[null,8,null,null,null,null,null,null,null,null,null,null,null,null,null,null,null,"0 años, 0 meses, 0 días"]
[null,9,null,null,null,null,null,null,null,null,null,null,null,null,null,null,null,"0 años, 0 meses, 0 días"]
[null,10,null,null,null,null,null,null,null,null,null,null,null,null,null,null,null,"0 años, 0 meses, 0 días"]
[null,11,null,null,null,null,null,null,null,null,null,null,null,null,null,null,null,"0 años, 0 meses, 0 días"]
[null,12,null,null,null,null,null,null,null,null,null,null,null,null,null,null,null,"0 años, 0 meses, 0 días"]
[null,13,null,null,null,null,null,null,null,null,null,null,null,null,null,null,null,"0 años, 0 meses, 0 días"]
[null,14,null,null,null,null,null,null,null,null,null,null,null,null,null,null,null,"0 años, 0 meses, 0 días"]
[null,15,null,null,null,null,null,null,null,null,null,null,null,null,null,null,null,"0 años, 0 meses, 0 días"]
[null,16,null,null,null,null,null,null,null,null,null,null,null,null,null,null,null,"0 años, 0 meses, 0 días"]
[null,17,null,null,null,null,null,null,null,null,null,null,null,null,null,null,null,"0 años, 0 meses, 0 días"]
[null,18,null,null,null,null,null,null,null,null,null,null,null,null,null,null,null,"0 años, 0 meses, 0 días"]
[null,19,null,null,null,null,null,null,null,null,null,null,null,null,null,null,null,"0 años, 0 meses, 0 días"]
[null,20,null,null,null,null,null,null,null,null,null,null,null,null,null,null,null,"0 años, 0 meses, 0 días"]
[null,21,null,null,null,null,null,null,null,null,null,null,null,null,null,null,null,"0 años, 0 meses, 0 días"]
[null,22,null,null,null,null,null,null,null,null,null,null,null,null,null,null,null,"0 años, 0 meses, 0 días"]
[null,23,null,null,null,null,null,null,null,null,null,null,null,null,null,null,null,"0 años, 0 meses, 0 días"]
[null,24,null,null,null,null,null,null,null,null,null,null,null,null,null,null,null,"0 años, 0 meses, 0 días"]
[null,25,null,null,null,null,null,null,null,null,null,null,null,null,null,null,null,"0 años, 0 meses, 0 días"]
[null,26,null,null,null,null,null,null,null,null,null,null,null,null,null,null,null,"0 años, 0 meses, 0 días"]
[null,27,null,null,null,null,null,null,null,null,null,null,null,null,null,null,null,"0 años, 0 meses, 0 días"]
[null,28,null,null,null,null,null,null,null,null,null,null,null,null,null,null,null,"0 años, 0 meses, 0 días"]
[null,29,null,null,null,null,null,null,null,null,null,null,null,null,null,null,null,"0 años, 0 meses, 0 días"]
[null,30,null,null,null,null,null,null,null,null,null,null,null,null,null,null,null,"0 años, 0 meses, 0 días"]
[null,31,null,null,null,null,null,null,null,null,null,null,null,null,null,null,null,"0 años, 0 meses, 0 días"]
[null,32,null,null,null,null,null,null,null,null,null,null,null,null,null,null,null,"0 años, 0 meses, 0 días"]
[null,33,null,null,null,null,null,null,null,null,null,null,null,null,null,null,null,"0 años, 0 meses, 0 días"]
[null,34,null,null,null,null,null,null,null,null,null,null,null,null,null,null,null,"0 años, 0 meses, 0 días"]
[null,35,null,null,null,null,null,null,null,null,null,null,null,null,null,null,null,"0 años, 0 meses, 0 días"]
[null,36,null,null,null,null,null,null,null,null,null,null,null,null,null,null,null,"0 años, 0 meses, 0 días"]
[null,37,null,null,null,null,null,null,null,null,null,null,null,null,null,null,null,"0 años, 0 meses, 0 días"]
[null,38,null,null,null,null,null,null,null,null,null,null,null,null,null,null,null,"0 años, 0 meses, 0 días"]
[null,39,null,null,null,null,null,null,null,null,null,null,null,null,null,null,null,"0 años, 0 meses, 0 días"]
[null,40,null,null,null,null,null,null,null,null,null,null,null,null,null,null,null,"0 años, 0 meses, 0 días"]
[null,41,null,null,null,null,null,null,null,null,null,null,null,null,null,null,null,"0 años, 0 meses, 0 días"]
[null,42,null,null,null,null,null,null,null,null,null,null,null,null,null,null,null,"0 años, 0 meses, 0 días"]
[null,43,null,null,null,null,null,null,null,null,null,null,null,null,null,null,null,"0 años, 0 meses, 0 días"]
[null,44,null,null,null,null,null,null,null,null,null,null,null,null,null,null,null,"0 años, 0 meses, 0 días"]
[null,45,null,null,null,null,null,null,null,null,null,null,null,null,null,null,null,"0 años, 0 meses, 0 días"]
[null,46,null,null,null,null,null,null,null,null,null,null,null,null,null,null,null,"0 años, 0 meses, 0 días"]
[null,47,null,null,null,null,null,null,null,null,null,null,null,null,null,null,null,"0 años, 0 meses, 0 días"]
[null,48,null,null,null,null,null,null,null,null,null,null,null,null,null,null,null,"0 años, 0 meses, 0 días"]
[null,49,null,null,null,null,null,null,null,null,null,null,null,null,null,null,null,"0 años, 0 meses, 0 días"]
[null,50,null,null,null,null,null,null,null,null,null,null,null,null,null,null,null,"0 años, 0 meses, 0 días"]
[null,"Antes de imprimir este documento… piense en el medio ambiente!\nCualquier copia impresa de este documento se considera como COPIA NO CONTROLADA\nLOS DATOS PROPORCIONADOS SERÁN TRATADOS DE ACUERDO A LA POLÍTICA DE TRATAMIENTO DE DATOS PERSONALES DEL ICBF Y A LA LEY 1581 DE 2012"]

{"sheet":"Instructivo-Accidentes","index":4,"n_rows":39,"n_cols":12,"rows_kept":39,"cut":false,"hidden":false,"merged":[[23,0,23,11],[37,0,37,11],[38,0,38,11],[24,0,24,11],[36,0,36,11],[34,0,34,11],[25,0,25,11],[26,0,26,11],[27,0,27,11],[28,0,28,11],[35,0,35,11],[32,0,32,11],[33,0,33,11],[31,0,31,11],[30,0,30,11],[29,0,29,11],[17,0,17,11],[18,0,18,11],[19,0,19,11],[21,0,21,11],[22,0,22,11],[20,0,20,11],[8,0,8,11],[0,0,2,1],[0,2,2,9],[2,10,2,11],[6,0,6,11],[7,0,7,11],[14,0,14,11],[15,0,15,11],[16,0,16,11],[9,0,9,11],[10,0,10,11],[11,0,11,11],[12,0,12,11],[13,0,13,11]]}
[null,null,"PROCESO\nPROMOCIÓN Y PREVENCIÓN\n\nFORMATO DE REPORTE DE PRESUNTOS HECHOS DE VIOLENCIAS, ACCIDENTES Y FALLECIMIENTOS DE LOS USUARIOS DE LOS SERVICIOS DE PRIMERA INFANCIA",null,null,null,null,null,null,null,"F30.MO12.PP","2022-04-12"]
[null,null,null,null,null,null,null,null,null,null,"Versión 1","Página 1 de 1"]
[null,null,null,null,null,null,null,null,null,null,"Clasificación de la Información:\nClasificada"]
[]
[]
[]
["REPORTE DE ACCIDENTES\nINSTRUCTIVO DE DILIGENCIAMIENTO"]
["Este formato busca unificar las acciones de reporte que deben adelantarse en caso de presentarse presuntos casos de violencia, lesiones y/o accidentes y fallecimientos de usuarios de los servicios de primera infancia. Con el fin de integrar lo dispuesto en los manuales operativos, la guía para la gestión de riesgos en la primera infancia y minutas contractuales se establecen acciones específicas para la notificación a la Dirección de Primera Infancia del ICBF ante cualquier diagnóstico, causa o motivo, dentro o fuera de la unidad de servicio. "]
["1. NIT De la EAS: Escriba el número de identificación tributaria sin código de verificación"]
["2. Nombre completo de la EAS: Escriba el nombre del operador como se encuentra registrado en Cuéntame"]
["3. N° de contrato o convenio: Escriba el número como se encuentra registrado en Cuéntame"]
["4. Regional: Selecciona la regional a la que pertenece"]
["5. Centro zonal: Seleccione el centro zonal al que pertenece "]
["6. Fecha del reporte de la UDS a la EAS: Escriba la fecha en formato DD/MM/AAAA en la que la UDS reporto a la EAS"]
["7. Modalidad en la que se atiende el usuario: Selecciones la modalidad de atención a la que pertenece el usuario"]
["8. Servicio en la que se atiende el usuario: Selecciones el servicio en el que se atiende el usuario"]
["9. Código de la UDS a la que asiste el usuario: Escriba el código de la UDS a la que asiste el usuario como se encuentra registrado en Cuéntame "]
["10. Nombre completo de la UDS a la que asiste el usuario: Escriba el nombre completo en mayúscula de la UDS a la que asiste el usuario como se encuentra registrado en Cuéntame"]
["11. Tipo de usuario: Seleccione el tipo de usuario que es atendido en la UDS. Tenga en cuenta que, en el caso de las mujeres gestantes ellas, deben desvincularse del servicio en el Sistema de Información Cuéntame, una vez ocurra el parto para vincular al niño o niña recién nacido; si aún éste último no cuenta con el documento de identidad el Sistema permite la vinculación de un usuario sin documento, si este es el caso. Una vez se tenga el registro civil, se debe actualizar en el Sistema de Información Cuéntame."]
["12. Nombre (s) y apellido (s) completo (s) del usuario: Escriba el nombre completo en mayúscula del usuario atendido"]
["13. Documento de identidad del usuario: Seleccione el tipo de documento de identidad del usuario atendido"]
["14. Número del Documento de identidad del usuario: Escriba sin puntos ni comas el número de documento de identidad del usuario"]
["15. Fecha de nacimiento: Escriba la fecha de nacimiento de usuario en el formato DD/MM/AAAA"]
["16. Edad: Calcule y escriba la edad del usuario (esta el sistema la calcula automáticamente)"]
["17. Sexo: Seleccione el sexo del usuario: Mujer: personas cuyas características genéticas, morfológicas y endocrinas le identifican como hembra, según la clasificación biológica de la especie humana; Hombre: personas cuyas características genéticas, morfológicas y endocrinas le identifican como macho, según la clasificación biológica de la especie humana; o Intersexual: personas que presentan simultáneamente características genéticas, congénitas, endocrinas o morfológicas de hembra y macho. (SIVIGE 2016:71) "]
["18. Etnia Autorreconocimiento o reconocimiento familiar: Seleccione la etnia a la que pertenece el usuario (El mismo que registra en la ficha de caracterización)"]
["19. Municipio / Vereda / Centro donde reside: Escriba el nombre Municipio / Vereda / Centro poblado donde reside el usuario"]
["20. Fecha del inicio de la atención en la UDS/UCA/UA: Escriba en formato DD/MM/AAAA la fecha del inicio de la atención en la UDS/UCA/UA (contrato o convenio vigente)"]
["21. Tipo de accidente: Seleccione el tipo de accidente sufrido por el usuario"]
["22. ¿El accidente se considera grave?: Indique Si o NO según corresponda, de acuerdo con el siguiente criterio. Fuente: Guía orientadora para la gestión del riesgo en la primera infancia.\nAccidente Grave: que tenga como consecuencia: heridas (lesión con sangrado abundante, cualquier lesión en los ojos, lesión en la cabeza con sangrado); fracturas (sempre que sospeche que la lesión corresponde a una fractura lesión con rotura y salida del hueso al exterior); trauma cráneo encefálico (todos los golpes en la cabeza, todos los golpes en la cabeza que produzcan pérdida de la conciencia, todos los golpes en la cabeza que produzcan convulsiones, náuseas y/o vómitos, todos los golpes en la cabeza que produzcan sangrado de oído o nariz); quemaduras (Toda lesión por contacto con una fuente de calor, tales como sólidos). "]
["23. Si en la preguntas anterior respondió SI, indique el tipo el tipo de lesión: Seleccione el tipo de lesión sufrida por el usuario"]
["24. Fecha en que ocurrio el accidente: Indique en formato (dd/mm/aaaa) la fecha del accidente.\n"]
["25. ¿En qué lugar se presentó el accidente?: Seleccione dónde tuvo lugar el accidente. La opción de un lugar del espacio publico, se refiere a espacios como parques, la calle, un centro comercial, entre otros."]
["26. ¿Se dio la activación de la póliza?: Indique Si o NO según corresponda"]
["27. Describa de forma detallada las acciones realizadas por la EAS al recibir el reporte de la UDS: Escriba de forma detallada las acciones realizadas por la EAS al recibir el reporte de la UDS. En caso de no existir, colocar SIN INFORMACIÓN"]
["28. Acciones realizadas por la UDS/UCA/UA: Escriba de forma detallada las acciones realizadas por la UDS/UCA/UA. En caso de no existir, colocar SIN INFORMACIÓN"]
["29. Acciones realizadas por la familia y /o cuidadores: Escriba de forma detallada las acciones realizadas por la familia y /o cuidadores. En caso de no existir, colocar SIN INFORMACIÓN"]
["30. Observaciones adicionales que puedan ser útiles al supervisor(a) de contrato y/o convenio: Escriba de forma detallada TODAS las observaciones adicionales que puedan ser útiles al Supervisor de contrato y/o convenio "]
["Antes de imprimir este documento… piense en el medio ambiente!\nCualquier copia impresa de este documento se considera como COPIA NO CONTROLADA\n"]

{"sheet":"Formato-Fallecimientos","index":5,"n_rows":56,"n_cols":44,"rows_kept":56,"cut":false,"hidden":false,"merged":[[55,1,55,43],[0,4,2,41],[0,1,2,3],[2,42,2,43]]}
[null,null,null,null,"PROCESO\nPROMOCIÓN Y PREVENCIÓN\n\nFORMATO DE REPORTE DE PRESUNTOS HECHOS DE VIOLENCIAS, ACCIDENTES Y FALLECIMIENTOS DE LOS USUARIOS DE LOS SERVICIOS DE PRIMERA INFANCIA",null,null,null,null,null,null,null,null,null,null,null,null,null,null,null,null,null,null,null,null,null,null,null,null,null,null,null,null,null,null,null,null,null,null,null,null,null,"F30.MO12.PP","2022-04-12"]
[null,null,null,null,null,null,null,null,null,null,null,null,null,null,null,null,null,null,null,null,null,null,null,null,null,null,null,null,null,null,null,null,null,null,null,null,null,null,null,null,null,null,"Versión 1","Página 1 de 1"]
[null,null,null,null,null,null,null,null,null,null,null,null,null,null,null,null,null,null,null,null,null,null,null,null,null,null,null,null,null,null,null,null,null,null,null,null,null,null,null,null,null,null,"Clasificación de la Información:\nClasificada"]
[]
[null,"No.","1. NIT de la EAS","2. Nombre completo de la EAS","3. N° de contrato o convenio","4. Regional ","5. Centro Zonal ","6. Fecha del reporte de la UDS a la EAS\n(dd/mm/aaaa)","7. Modalidad en la que se atiende el usuario (a) ","8. Servicio en la que se atiende el usuario (a)  ","9. Código de la UDS a la que asiste el usuario (a) ","10. Nombre completo de la UDS a la que asiste el usuario (a)","11. Tipo de usuario (a)  ","12. Nombre (s) y apellido (s) completo (s) del usuario (a) ","13. Documento de identidad del usuario (a) ","14. Número del Documento de identidad del usuario (a) ","15. Fecha de nacimiento \n(dd/mm/aaaa)","16. Edad \n(con respecto a la fecha de fallecimiento)","17. Sexo","18. Étnia \nAutoreconocimiento o reconocimiento familiar ","19. Municipio / Vereda / Centro donde reside ","20. Fecha del inicio de la atención en la UDS/UCA/UA \n(dd/mm/aaaa)","21. Reporte del último estado nutricional en el Cuéntame para niñas y niños\nTomar el indicador antropométrico Peso/Talla","22. Reporte del último estado nutricional en el Cuéntame para Mujer Gestante\nTomar el indicador antropométrico IMC","23. Fecha en que ocurrio el fallecimiento\n(dd/mm/aaaa)\n","24. Cuenta con Certificado de defunción","25. Probable forma de muerte \n","26. Si la muerte fue violenta, indique la probable forma del fallecimiento\n","27. Si la muerte fue natural, ¿Cuál fue el mecanismo o estado fisiopatológico que produjo el fallecimiento?\n","27. 1 Si en la pregunta anterior selecciono \"20. Otro\", mencione cuál.\n","28. Si conoce las circunstancias del fallecimiento describa, ¿cómo ocurrió?","29. ¿En qué lugar ocurrió el fallecimiento del usuario (a)?","30. Si el usuario (a) era Mujer Gestante indique en qué momento fallece","31. Si el usuario (a) era Mujer Gestante, indique el número de semanas que tenía","32. Si el usuario (a) era Mujer Gestante, indique si la niña, el niño o los niños sobrevivieron.","33. El usuario (a) estaba en Proceso Administrativo de Restablecimiento de los Derechos (PARD) ","34. La EAS realizó activación de rutas en tema de amenazas , vulneración e inobservacia de derechos o canalizó a los servicios de salud en caso de desnutrición aguda","35. ¿Se dio la activación de la póliza de seguro\ncontra accidentes?","36. Describa de forma detallada las acciones que se realizaron (antes y después del fallecimiento) por parte de la EAS al recibir el reporte de la UDS ","37. Describa de forma detallada las acciones que se realizaron (antes y después del fallecimiento) por parte de la UDS/UCA/GA","38. ¿La UDS ha realizado el acompañamiento psicosocial a la familia de la\nniña, niño o mujer gestantes posterior a los 2 meses del fallecimiento?","39. La EAS allegó al supervisor(a) del contrato la información relacionada en el estándar 41 del manual operativo. ","40. Acciones realizadas por la familia y /o cuidadores (antes y después del fallecimiento)","41. Observaciones adicionales que puedan ser útiles al supervisor(a) de contrato y/o convenio "]
[null,1,null,null,null,null,null,null,null,null,null,null,null,null,null,null,null,{"$f":"DATEDIF(Q6,H6,\"y\") & \" años, \" & DATEDIF(Q6,H6,\"ym\") & \" meses, \" &DATEDIF(Q6,H6,\"md\")& \" días\"","v":"0 años, 0 meses, 0 días"}]
[null,2,null,null,null,null,null,null,null,null,null,null,null,null,null,null,null,{"$f":"DATEDIF(Q7,H7,\"y\") & \" años, \" & DATEDIF(Q7,H7,\"ym\") & \" meses, \" &DATEDIF(Q7,H7,\"md\")& \" días\"","v":"0 años, 0 meses, 0 días"}]
[null,3,null,null,null,null,null,null,null,null,null,null,null,null,null,null,null,"0 años, 0 meses, 0 días"]
[null,4,null,null,null,null,null,null,null,null,null,null,null,null,null,null,null,"0 años, 0 meses, 0 días"]
[null,5,null,null,null,null,null,null,null,null,null,null,null,null,null,null,null,"0 años, 0 meses, 0 días"]
[null,6,null,null,null,null,null,null,null,null,null,null,null,null,null,null,null,"0 años, 0 meses, 0 días"]
[null,7,null,null,null,null,null,null,null,null,null,null,null,null,null,null,null,"0 años, 0 meses, 0 días"]
[null,8,null,null,null,null,null,null,null,null,null,null,null,null,null,null,null,"0 años, 0 meses, 0 días"]
[null,9,null,null,null,null,null,null,null,null,null,null,null,null,null,null,null,"0 años, 0 meses, 0 días"]
[null,10,null,null,null,null,null,null,null,null,null,null,null,null,null,null,null,"0 años, 0 meses, 0 días"]
[null,11,null,null,null,null,null,null,null,null,null,null,null,null,null,null,null,"0 años, 0 meses, 0 días"]
[null,12,null,null,null,null,null,null,null,null,null,null,null,null,null,null,null,"0 años, 0 meses, 0 días"]
[null,13,null,null,null,null,null,null,null,null,null,null,null,null,null,null,null,"0 años, 0 meses, 0 días"]
[null,14,null,null,null,null,null,null,null,null,null,null,null,null,null,null,null,"0 años, 0 meses, 0 días"]
[null,15,null,null,null,null,null,null,null,null,null,null,null,null,null,null,null,"0 años, 0 meses, 0 días"]
[null,16,null,null,null,null,null,null,null,null,null,null,null,null,null,null,null,"0 años, 0 meses, 0 días"]
[null,17,null,null,null,null,null,null,null,null,null,null,null,null,null,null,null,"0 años, 0 meses, 0 días"]
[null,18,null,null,null,null,null,null,null,null,null,null,null,null,null,null,null,"0 años, 0 meses, 0 días"]
[null,19,null,null,null,null,null,null,null,null,null,null,null,null,null,null,null,"0 años, 0 meses, 0 días"]
[null,20,null,null,null,null,null,null,null,null,null,null,null,null,null,null,null,"0 años, 0 meses, 0 días"]
[null,21,null,null,null,null,null,null,null,null,null,null,null,null,null,null,null,"0 años, 0 meses, 0 días"]
[null,22,null,null,null,null,null,null,null,null,null,null,null,null,null,null,null,"0 años, 0 meses, 0 días"]
[null,23,null,null,null,null,null,null,null,null,null,null,null,null,null,null,null,"0 años, 0 meses, 0 días"]
[null,24,null,null,null,null,null,null,null,null,null,null,null,null,null,null,null,"0 años, 0 meses, 0 días"]
[null,25,null,null,null,null,null,null,null,null,null,null,null,null,null,null,null,"0 años, 0 meses, 0 días"]
[null,26,null,null,null,null,null,null,null,null,null,null,null,null,null,null,null,"0 años, 0 meses, 0 días"]
[null,27,null,null,null,null,null,null,null,null,null,null,null,null,null,null,null,"0 años, 0 meses, 0 días"]
[null,28,null,null,null,null,null,null,null,null,null,null,null,null,null,null,null,"0 años, 0 meses, 0 días"]
[null,29,null,null,null,null,null,null,null,null,null,null,null,null,null,null,null,"0 años, 0 meses, 0 días"]
[null,30,null,null,null,null,null,null,null,null,null,null,null,null,null,null,null,"0 años, 0 meses, 0 días"]
[null,31,null,null,null,null,null,null,null,null,null,null,null,null,null,null,null,"0 años, 0 meses, 0 días"]
[null,32,null,null,null,null,null,null,null,null,null,null,null,null,null,null,null,"0 años, 0 meses, 0 días"]
[null,33,null,null,null,null,null,null,null,null,null,null,null,null,null,null,null,"0 años, 0 meses, 0 días"]
[null,34,null,null,null,null,null,null,null,null,null,null,null,null,null,null,null,"0 años, 0 meses, 0 días"]
[null,35,null,null,null,null,null,null,null,null,null,null,null,null,null,null,null,"0 años, 0 meses, 0 días"]
[null,36,null,null,null,null,null,null,null,null,null,null,null,null,null,null,null,"0 años, 0 meses, 0 días"]
[null,37,null,null,null,null,null,null,null,null,null,null,null,null,null,null,null,"0 años, 0 meses, 0 días"]
[null,38,null,null,null,null,null,null,null,null,null,null,null,null,null,null,null,"0 años, 0 meses, 0 días"]
[null,39,null,null,null,null,null,null,null,null,null,null,null,null,null,null,null,"0 años, 0 meses, 0 días"]
[null,40,null,null,null,null,null,null,null,null,null,null,null,null,null,null,null,"0 años, 0 meses, 0 días"]
[null,41,null,null,null,null,null,null,null,null,null,null,null,null,null,null,null,"0 años, 0 meses, 0 días"]
[null,42,null,null,null,null,null,null,null,null,null,null,null,null,null,null,null,"0 años, 0 meses, 0 días"]
[null,43,null,null,null,null,null,null,null,null,null,null,null,null,null,null,null,"0 años, 0 meses, 0 días"]
[null,44,null,null,null,null,null,null,null,null,null,null,null,null,null,null,null,"0 años, 0 meses, 0 días"]
[null,45,null,null,null,null,null,null,null,null,null,null,null,null,null,null,null,"0 años, 0 meses, 0 días"]
[null,46,null,null,null,null,null,null,null,null,null,null,null,null,null,null,null,"0 años, 0 meses, 0 días"]
[null,47,null,null,null,null,null,null,null,null,null,null,null,null,null,null,null,"0 años, 0 meses, 0 días"]
[null,48,null,null,null,null,null,null,null,null,null,null,null,null,null,null,null,"0 años, 0 meses, 0 días"]
[null,49,null,null,null,null,null,null,null,null,null,null,null,null,null,null,null,"0 años, 0 meses, 0 días"]
[null,50,null,null,null,null,null,null,null,null,null,null,null,null,null,null,null,"0 años, 0 meses, 0 días"]
[null,"Antes de imprimir este documento… piense en el medio ambiente!\nCualquier copia impresa de este documento se considera como COPIA NO CONTROLADA\nLOS DATOS PROPORCIONADOS SERÁN TRATADOS DE ACUERDO A LA POLÍTICA DE TRATAMIENTO DE DATOS PERSONALES DEL ICBF Y A LA LEY 1581 DE 2012\n "]

{"sheet":"Instructivo-Fallecimientos","index":6,"n_rows":50,"n_cols":12,"rows_kept":50,"cut":false,"hidden":false,"merged":[[44,0,44,11],[47,0,47,11],[48,0,48,11],[49,0,49,11],[46,0,46,11],[45,0,45,11],[21,0,21,11],[22,0,22,11],[23,0,23,11],[24,0,24,11],[25,0,25,11],[26,0,26,11],[27,0,27,11],[28,0,28,11],[29,0,29,11],[31,0,31,11],[30,0,30,11],[32,0,32,11],[34,0,34,11],[40,0,40,11],[41,0,41,11],[43,0,43,11],[35,0,35,11],[33,0,33,11],[36,0,36,11],[37,0,37,11],[38,0,38,11],[39,0,39,11],[42,0,42,11],[20,0,20,11],[9,0,9,11],[10,0,10,11],[11,0,11,11],[12,0,12,11],[13,0,13,11],[14,0,14,11],[15,0,15,11],[16,0,16,11],[17,0,17,11],[18,0,18,11],[19,0,19,11],[8,0,8,11],[0,0,2,1],[0,2,2,9],[2,10,2,11],[6,0,6,11],[7,0,7,11]]}
[null,null,"PROCESO\nPROMOCIÓN Y PREVENCIÓN\n\nFORMATO DE REPORTE DE PRESUNTOS HECHOS DE VIOLENCIAS, ACCIDENTES Y FALLECIMIENTOS DE LOS USUARIOS DE LOS SERVICIOS DE PRIMERA INFANCIA",null,null,null,null,null,null,null,"F30.MO12.PP","2022-04-12"]
[null,null,null,null,null,null,null,null,null,null,"Versión 1","Página 1 de 1"]
[null,null,null,null,null,null,null,null,null,null,"Clasificación de la Información:\nClasificada"]
[]
[]
[]
["REPORTE FALLECIMIENTO DE USUARIOS\nINSTRUCTIVO DE DILIGENCIAMIENTO"]
["Este formato busca unificar las acciones de reporte que deben adelantarse en caso de presentarse presuntos casos de violencia, lesiones y/o accidentes y fallecimientos de usuarios de los servicios de primera infancia. Con el fin de integrar lo dispuesto en los manuales operativos, la guía para la gestión de riesgos en la primera infancia y minutas contractuales se establecen acciones específicas para la notificación a la Dirección de Primera Infancia del ICBF ante cualquier diagnóstico, causa o motivo, dentro o fuera de la unidad de servicio. "]
["1. NIT De la EAS: Escriba el número de identificación tributaria sin código de verificación"]
["2. Nombre completo de la EAS: Escriba el nombre del operador como se encuentra registrado en Cuéntame"]
["3. N° de contrato o convenio: Escriba el número como se encuentra registrado en Cuéntame"]
["4. Regional: Seleccione la regional a la que pertenece"]
["5. Centro zonal: Seleccione el centro zonal al que pertenece "]
["6. Fecha del reporte de la UDS a la EAS: Escriba la fecha en formato DD/MM/AAAA en la que la UDS reporto a la EAS"]
["7. Modalidad en la que se atiende el usuario: Seleccione la modalidad de atención a la que pertenece el usuario"]
["8. Servicio en la que se atiende el usuario: Seleccione el servicio en el que se atiende el usuario"]
["9. Código de la UDS a la que asiste el usuario: Escriba el código de la UDS a la que asiste el usuario como se encuentra registrado en Cuéntame "]
["10. Nombre completo de la UDS a la que asiste el usuario: Escriba el nombre completo en mayúscula de la UDS a la que asiste el usuario como se encuentra registrado en Cuéntame"]
["11. Tipo de usuario: Seleccione el tipo de usuario que es atendido en la UDS. Tenga en cuenta que, en el caso de las mujeres gestantes ellas, deben desvincularse del servicio en el Sistema de Información Cuéntame, una vez ocurra el parto para vincular al niño o niña recién nacido; si aún éste último no cuenta con el documento de identidad el Sistema permite la vinculación de un usuario sin documento, si este es el caso. Una vez se tenga el registro civil, se debe actualizar en el Sistema de Información Cuéntame."]
["12. Nombre (s) y apellido (s) completo (s) del usuario: Escriba el nombre completo en mayúscula del usuario atendido"]
["13. Documento de identidad del usuario: Seleccione el tipo de documento de identidad del usuario atendido"]
["14. Número del Documento de identidad del usuario: Escriba sin puntos ni comas el número de documento de identidad del usuario"]
["15. Fecha de nacimiento: Escriba la fecha de nacimiento de usuario en el formato DD/MM/AAAA"]
["16. Edad: Calcule y escriba la edad del usuario (esta el sistema la calcula automáticamente)"]
["17. Sexo: Seleccione el sexo del usuario: Mujer: personas cuyas características genéticas, morfológicas y endocrinas le identifican como hembra, según la clasificación biológica de la especie humana; Hombre: personas cuyas características genéticas, morfológicas y endocrinas le identifican como macho, según la clasificación biológica de la especie humana; o Intersexual: personas que presentan simultáneamente características genéticas, congénitas, endocrinas o morfológicas de hembra y macho. (SIVIGE 2016:71) "]
["18. Etnia Autorreconocimiento o reconocimiento familiar: Seleccione la etnia a la que pertenece el usuario (El mismo que registra en la ficha de caracterización)"]
["19. Municipio / Vereda / Centro donde reside: Escriba el nombre Municipio / Vereda / Centro poblado donde reside el usuario"]
["20. Fecha del inicio de la atención en la UDS/UCA/UA: Escriba en formato DD/MM/AAAA la fecha del inicio de la atención en la UDS/UCA/UA (contrato o convenio vigente)"]
["21. Reporte del último estado nutricional en el Cuéntame para niñas y niños: Tomar el indicador antropométrico Peso/Talla"]
["22. Reporte del último estado nutricional en el Cuéntame para Mujer Gestante: Tomar el indicador antropométrico IMC"]
["23. Fecha en que ocurrio el fallecimiento: Indique en formato (dd/mm/aaaa) la fecha del fallecimiento. Tenga en cuenta que si el fallecimiento ocurre en comunidad y no se cuenta con certificado de defunción, la fecha que se registra corresponde al día de la notificación a las UDS o EAS"]
["24. Cuenta con Certificado de defunción: Seleccione SI o NO según corresponda. "]
["25. Probable forma de muerte: Seleccione VIOLENTA o NATURAL o EN ESTUDIO o  SIN INFORMACIÓN según corresponda. Esta informacón puede estar consginada en el certificado de defunción, de ser así registrela tal cual como aparece allí; en caso contrario, diligencie de acuerdo con la información que conozca del fallecimiento."]
["26. Si la muerte fue VIOLENTA, indique la probable forma del fallecimiento: Especifique la manera de muerte: suicidio, homicidio, feminicidio, accidente de tránsito, ahogamiento por inmersión, asfixia por obstrucción en vías respiratorias (nariz y boca), caída de altura y de la propia altura, electrocución, intoxicaciones, quemaduras, o en estudio, siempre y cuando en la pregunta 25 se haya seleccionado la opción 2, violenta. “En estudio”, se refiere que a pesar de practicada la necropsia, no se ha podido aclarar la manera de muerte. Esta informacón puede estar consginada en el certificado de defunción, de ser así registrela tal cual como aparece allí; en caso contrario, diligencie de acuerdo con la información que conozca del fallecimiento."]
["27. Si la muerte  fue NATURAL, ¿Cuál fue el mecanismo o estado fisiopatológico que produjo el fallecimiento?: Seleccione al opción que corresponda según sea el caso, si la opción correspondiente no se encuentra, seleccione \"21. Otro\" y escriba en la siguiente columna como aparece en el certificado de defunción, solo la causa directa. En caso probable forma de muerte \"EN ESTUDIO\" O \"SIN INFORMACIÓN\" seleccione \"22. No aplica\". Esta informacón puede estar consginada en el certificado de defunción, de ser así registrela tal cual como aparece allí; en caso contrario, diligencie de acuerdo con la información que conozca del fallecimiento."]
["28. Si conoce las circunstancias del fallecimiento describa, ¿cómo ocurrió?: Si las conoce, describa de manera concreta las circunstancias en las cuásles se presentó el fallecimiento."]
["29. ¿En que lugar ocurrió el fallecimiento del usuario?: Hace referencia en el lugar donde se causo el fallecimiento, por ejemplo \"VÍA PÚBLICA\" por un accidente de transito a pesar que murio en la institución de salud donde fue atendido. "]
["30. Si el usuario era Mujer Gestante indique en que momento fallece: Seleccione DURANTE LA GESTACIÓN o DURANTE EL PARTO o EN EL PERIODO POST-PARTO. Pregunta solo aplica para usuario \"Mujer gestante\""]
["31. Si el usuario era Mujer Gestante, indique el número de semanas que tenia: Indique el numero de semanas (entre 1 y 42). Pregunta solo aplica para usuario \"Mujer gestante\""]
["32. Si el usuario era Mujer Gestante, indique si la niña, el niño o los niños sobrevivieron: Seleccione SI o NO según corresponda. Pregunta solo aplica para usuario \"Mujer gestante\""]
["33. El usuario estaba en Proceso Administrativo de Restablecimiento de los Derechos (PARD): Seleccione SI o NO según corresponda"]
["34. La EAS realizó activación de rutas en tema de amenazas, vulneración e inobservancia de derechos o canalizó a los servicios de salud en caso de desnutrición aguda: Seleccione SI o NO según corresponda, según lo establecido en el \"Protocolo de Actuaciones ante Alertas de Amenaza, Vulneración o Inobservancia de Derechos en los Servicios de Atención a la Primera Infancia del ICBF\" y en los manuales operativos."]
["35. ¿Se dio la activación de la póliza de seguro contra accidentes?: Indique Si o NO según corresponda"]
["36. Describa de forma detallada las acciones que se realizaron (antes y después del fallecimiento) por parte de la EAS al recibir el reporte de la UDS: Escriba de forma detallada las acciones realizadas por la EAS al recibir el reporte de la UDS. En caso de no existir, colocar SIN INFORMACIÓN"]
["37. Describa de forma detallada las acciones que se realizaron (antes y después del fallecimiento) por parte de la UDS/UCA/GA: Escriba de forma detallada las acciones realizadas por la UDS/UCA/GA. En caso de no existir, colocar SIN INFORMACIÓN"]
["38. ¿La UDS ha realizado el acompañmiento psicosocial a la familia de la niña, niño o mujer gestantes posterior a los 2 meses del fallecimiento?: Indique Si o NO según corresponda"]
["39. La EAS allegó al supervisor(a) del contrato la información relacionada en el estándar 41 del manual operativo: Seleccione SI o NO o INCOMPLETO según corresponda"]
["40. Acciones realizadas por la familia y /o cuidadores (antes y después del fallecimiento): Escriba de forma detallada las acciones realizadas por la FAMILIA O CUIDADORES En caso de no existir, colocar SIN INFORMACIÓN"]
["41. Observaciones adicionales que puedan ser útiles al supervisor(a) de contrato y/o convenio: Escriba de forma detallada TODAS las observaciones adicionales que puedan ser útiles al Supervisor de contrato y/o convenio "]
["Antes de imprimir este documento… piense en el medio ambiente!\nCualquier copia impresa de este documento se considera como COPIA NO CONTROLADA"]

{"sheet":"LISTADOS","index":7,"n_rows":58,"n_cols":34,"rows_kept":58,"cut":false,"hidden":false,"merged":[]}
["REGIONAL","CENTRO ZONAL"]
["AMAZONAS","AMAZONAS","ANTIOQUIA","ARAUCA","ATLÁNTICO","BOGOTÁ","BOLÍVAR","BOYACÁ","CALDAS","CAQUETÁ","CASANARE","CAUCA","CESAR","CHOCÓ","CÓRDOBA","CUNDINAMARCA","GUAINÍA","GUAVIARE","HUILA","LA GUAJIRA","MAGDALENA","META","NARIÑO","NORTE DE SANTANDER","PUTUMAYO","QUINDÍO","RISARALDA","SAN ANDRÉS","SANTANDER","SUCRE","TOLIMA","VALLE DEL CAUCA","VAUPÉS","VICHADA"]
["ANTIOQUIA","CENTRO ZONAL LETICIA","CENTRO ZONAL ABURRA NORTE","CENTRO ZONAL ARAUCA","CENTRO ZONAL BARANOA","CENTRO ZONAL BARRIOS UNIDOS","CENTRO ZONAL DE LA VIRGEN Y TURÍSTICO","CENTRO ZONAL CHIQUINQUIRÁ","CENTRO ZONAL DEL CAFÉ","CENTRO ZONAL BELÉN DE LOS ANDAQUÍES","CENTRO ZONAL PAZ DE ARIPORO","CENTRO ZONAL CENTRO","CENTRO ZONAL AGUACHICA","CENTRO ZONAL BAHÍA SOLANO","CENTRO ZONAL CERETÉ","CENTRO ZONAL CHOCONTÁ","CENTRO ZONAL INÍRIDA","CENTRO ZONAL SAN JOSÉ DEL GUAVIARE","CENTRO ZONAL GARZÓN","CENTRO ZONAL FONSECA","CENTRO ZONAL CIÉNAGA","CENTRO ZONAL ACACÍAS","CENTRO ZONAL BARBACOAS","CENTRO ZONAL CÚCUTA 1","CENTRO ZONAL LA HORMIGA","CENTRO ZONAL ARMENIA NORTE","CENTRO ZONAL BELÉN DE UMBRÍA","CENTRO ZONAL LOS ALMENDROS","CENTRO ZONAL ANTONIA SANTOS","CENTRO ZONAL BOSTON","CENTRO ZONAL CHAPARRAL","CENTRO ZONAL BUENAVENTURA","CENTRO ZONAL MITÚ","CENTRO ZONAL PUERTO CARREÑO"]
["ARAUCA",null,"CENTRO ZONAL ABURRA SUR","CENTRO ZONAL SARAVENA","CENTRO ZONAL HIPÓDROMO","CENTRO ZONAL BOSA","CENTRO ZONAL EL CARMEN DE BOLÍVAR","CENTRO ZONAL DUITAMA","CENTRO ZONAL NORTE","CENTRO ZONAL FLORENCIA 1","CENTRO ZONAL VILLANUEVA","CENTRO ZONAL COSTA PACÍFICA","CENTRO ZONAL CHIRIGUANÁ","CENTRO ZONAL ISTMINA","CENTRO ZONAL LORICA","CENTRO ZONAL CÁQUEZA",null,null,"CENTRO ZONAL LA GAITANA","CENTRO ZONAL MAICAO","CENTRO ZONAL DEL RÍO","CENTRO ZONAL GRANADA","CENTRO ZONAL IPIALES","CENTRO ZONAL CÚCUTA 2","CENTRO ZONAL MOCOA","CENTRO ZONAL ARMENIA SUR","CENTRO ZONAL DOSQUEBRADAS",null,"CENTRO ZONAL BUCARAMANGA SUR","CENTRO ZONAL LA MOJANA","CENTRO ZONAL ESPINAL","CENTRO ZONAL BUGA"]
["ATLÁNTICO",null,"CENTRO ZONAL BAJO CAUCA","CENTRO ZONAL TAME","CENTRO ZONAL NORTE CENTRO HISTÓRICO","CENTRO ZONAL CIUDAD BOLÍVAR","CENTRO ZONAL HISTÓRICO Y DEL CARIBE NORTE","CENTRO ZONAL EL COCUY","CENTRO ZONAL OCCIDENTE","CENTRO ZONAL FLORENCIA 2","CENTRO ZONAL YOPAL","CENTRO ZONAL INDÍGENA","CENTRO ZONAL CODAZZI","CENTRO ZONAL QUIBDÓ","CENTRO ZONAL MONTELÍBANO","CENTRO ZONAL FACATATIVÁ",null,null,"CENTRO ZONAL LA PLATA","CENTRO ZONAL MANAURE","CENTRO ZONAL EL BANCO","CENTRO ZONAL PUERTO LÓPEZ","CENTRO ZONAL LA UNIÓN","CENTRO ZONAL CÚCUTA 3","CENTRO ZONAL PUERTO ASIS","CENTRO ZONAL CALARCÁ","CENTRO ZONAL LA VIRGINIA",null,"CENTRO ZONAL CARLOS LLERAS RESTREPO","CENTRO ZONAL NORTE","CENTRO ZONAL GALÁN","CENTRO ZONAL CARTAGO"]
["BOGOTÁ",null,"CENTRO ZONAL LA MESETA",null,"CENTRO ZONAL SABANAGRANDE","CENTRO ZONAL ENGATIVÁ","CENTRO ZONAL INDUSTRIAL DE LA BAHÍA","CENTRO ZONAL GARAGOA","CENTRO ZONAL ORIENTE","CENTRO ZONAL PUERTO RICO",null,"CENTRO ZONAL MACIZO COLOMBIANO","CENTRO ZONAL VALLEDUPAR 1","CENTRO ZONAL RIOSUCIO","CENTRO ZONAL MONTERÍA","CENTRO ZONAL FUSAGASUGÁ",null,null,"CENTRO ZONAL NEIVA","CENTRO ZONAL NAZARETH","CENTRO ZONAL FUNDACIÓN","CENTRO ZONAL VILLAVICENCIO 1","CENTRO ZONAL PASTO 1","CENTRO ZONAL OCAÑA","CENTRO ZONAL SIBUNDOY",null,"CENTRO ZONAL PEREIRA",null,"CENTRO ZONAL MÁLAGA","CENTRO ZONAL SINCELEJO","CENTRO ZONAL HONDA","CENTRO ZONAL JAMUNDÍ"]
["BOLÍVAR",null,"CENTRO ZONAL MAGDALENA MEDIO",null,"CENTRO ZONAL SABANALARGA","CENTRO ZONAL FONTIBÓN","CENTRO ZONAL MAGANGUÉ","CENTRO ZONAL MIRAFLORES","ENTRO ZONAL SURORIENTE",null,null,"CENTRO ZONAL NORTE",null,"CENTRO ZONAL TADÓ","CENTRO ZONAL PLANETA RICA","CENTRO ZONAL GACHETÁ",null,null,"CENTRO ZONAL PITALITO","CENTRO ZONAL RIOHACHA 1","CENTRO ZONAL PLATO",null,"CENTRO ZONAL PASTO 2","CENTRO ZONAL PAMPLONA",null,null,"CENTRO ZONAL SANTA ROSA DE CABAL",null,"CENTRO ZONAL SAN GIL",null,"CENTRO ZONAL LÉRIDA","CENTRO ZONAL NORORIENTAL"]
["BOYACÁ",null,"CENTRO ZONAL NOROCCIDENTAL",null,"CENTRO ZONAL SUR OCCIDENTE","CENTRO ZONAL KENNEDY","CENTRO ZONAL MOMPOX","CENTRO ZONAL MONIQUIRÁ","CENTRO ZONAL MANIZALES 1",null,null,"CENTRO ZONAL POPAYÁN",null,null,"CENTRO ZONAL SAHAGÚN","CENTRO ZONAL GIRARDOT",null,null,null,null,"CENTRO ZONAL SANTA ANA",null,"CENTRO ZONAL REMOLINO","CENTRO ZONAL TIBÚ",null,null,null,null,"CENTRO ZONAL SOCORRO",null,"CENTRO ZONAL LÍBANO","CENTRO ZONAL PALMIRA"]
["CALDAS",null,"CENTRO ZONAL NORORIENTAL",null,"CENTRO ZONAL SUR ORIENTE","CENTRO ZONAL KENNEDY CENTRAL","CENTRO ZONAL SIMITI","CENTRO ZONAL OTANCHE",null,null,null,"CENTRO ZONAL SUR",null,null,"CENTRO ZONAL SAN ANDRÉS DE SOTAVENTO","CENTRO ZONAL LA MESA",null,null,null,null,"CENTRO ZONAL SANTA MARTA 1",null,"CENTRO ZONAL TUMACO",null,null,null,null,null,"CENTRO ZONAL VÉLEZ",null,"CENTRO ZONAL MELGAR","CENTRO ZONAL ROLDANILLO"]
["CAQUETÁ",null,"CENTRO ZONAL OCCIDENTE",null,null,"CENTRO ZONAL MÁRTIRES","CENTRO ZONAL TURBACO","CENTRO ZONAL PUERTO BOYACÁ",null,null,null,null,null,null,"CENTRO ZONAL TIERRALTA","CENTRO ZONAL PACHO",null,null,null,null,"CENTRO ZONAL SANTA MARTA 2",null,"CENTRO ZONAL TÚQUERRES",null,null,null,null,null,"CENTRO ZONAL YARIGUIES",null,"CENTRO ZONAL PURIFICACIÓN","CENTRO ZONAL SEVILLA"]
["CASANARE",null,"CENTRO ZONAL OCCIDENTE MEDIO",null,null,"CENTRO ZONAL RAFAEL URIBE",null,"CENTRO ZONAL SOATÁ",null,null,null,null,null,null,null,"CENTRO ZONAL SAN JUAN DE RÍOSECO",null,null,null,null,null,null,null,null,null,null,null,null,null,null,"CENTRO ZONAL IBAGUÉ ","CENTRO ZONAL SUR"]
["CAUCA",null,"CENTRO ZONAL ORIENTE",null,null,"CENTRO ZONAL SAN CRISTÓBAL",null,"CENTRO ZONAL SOGAMOSO",null,null,null,null,null,null,null,"CENTRO ZONAL SOACHA",null,null,null,null,null,null,null,null,null,null,null,null,null,null,null,"CENTRO ZONAL SURORIENTAL"]
["CESAR",null,"CENTRO ZONAL ORIENTE MEDIO",null,null,"CENTRO ZONAL SANTA FE",null,"CENTRO ZONAL TUNJA 1 ",null,null,null,null,null,null,null,"CENTRO ZONAL SOACHA CENTRO",null,null,null,null,null,null,null,null,null,null,null,null,null,null,null,"CENTRO ZONAL TULUÁ"]
["CHOCÓ",null,"CENTRO ZONAL PENDERISCO",null,null,"CENTRO ZONAL SUBA",null,null,null,null,null,null,null,null,null,"CENTRO ZONAL UBATÉ",null,null,null,null,null,null,null,null,null,null,null,null,null,null,null,"CENTRO ZONAL YUMBO"]
["CÓRDOBA",null,"CENTRO ZONAL PORCE NUS",null,null,"CENTRO ZONAL TUNJUELITO",null,null,null,null,null,null,null,null,null,"CENTRO ZONAL VILLETA",null,null,null,null,null,null,null,null,null,null,null,null,null,null,null,"CENTRO ZONAL LADERA "]
["CUNDINAMARCA",null,"CENTRO ZONAL ROSALES",null,null,"CENTRO ZONAL USAQUÉN",null,null,null,null,null,null,null,null,null,"CENTRO ZONAL ZIPAQUIRÁ"]
["GUAINÍA",null,"CENTRO ZONAL SUR ORIENTE",null,null,"CENTRO ZONAL USME"]
["GUAVIARE",null,"CENTRO ZONAL SUROESTE"]
["HUILA",null,"CENTRO ZONAL URABÁ"]
["LA_GUAJIRA"]
["MAGDALENA",{"$f":"COUNTA(B3:B20)","v":1},{"$f":"COUNTA(C3:C20)","v":17},3,7,15,8,11,6,4,3,7,4,5,8,14,1,1,null,5,8,4,8,6,4,3,5,1,8,4,9,13,1,1]
["META"]
["NARIÑO"]
["NORTE_DE_SANTANDER"]
["PUTUMAYO"]
["QUINDÍO"]
["RISARALDA"]
["SAN_ANDRÉS"]
["SANTANDER"]
["SUCRE"]
["TOLIMA"]
["VALLE_DEL_CAUCA"]
["VAUPÉS"]
["VICHADA"]
[]
["MODALIDAD","SERVICIO",null,null,null,"USUARIO","DOCUMENTO","SEXO","GRUPO ÉTNICO","SI/NO","INFORMACIÓN","PESO PARA LA TALLA","IMC","TIPO DE ACCIDENTE","TIPO DE LESIÓN","DONDE ACCIDENTE","DONDE FALLECIMIENTO","MUERTE MUJER GESTANTE","FORMA DE MUERTE","MANERA DE MUERTE VIOLENTA","MANERA DE MUERTE NATURAL","TIPOLOGIA VS","VIOLENCIA POR","TIPO DE VIOLENCIA NN","TIPO DE VIOLENCIA MG","TIPOS DE INOBSERVANCIA","SECTOR INVOLUCRADO EN LA INOBSERVANCIA","ACTIVACIÓN RUTA"]
["INSTITUCIONAL","INSTITUCIONAL","FAMILIAR","COMUNITARIA","PROPIA_E_INTERCULTURAL","MUJER GESTANTE ","1. REGISTRO CIVIL","1. MUJER","1. POBLACIÓN INDÍGENA","SI","SI","1. PESO ADECUADO PARA LA TALLA","1. OBESIDAD PARA LA EDAD GESTACIONAL ","1. ASFIXIA POR OBSTRUCCIÓN EN VÍAS RESPIRATORIAS (NARIZ Y BOCA)","1. HERIDAS","1. EN LA UDS","1. HOSPITAL / CLINICA","1. DURANTE LA GESTACIÓN","1. NATURAL","1. SUICIDIO","1.       ANEMIAS (NUTRICIONALES, HEMOLÍTICAS Y OTRAS)","1. ACTO SEXUAL","1. INTEGRANTE DE LA FAMILIA QUE VIVE EN EL HOGAR","1. VIOLENCIA SEXUAL ","1. VIOLENCIA SEXUAL ","1. DOCUMENTO DE IDENTIDAD","1. REGISTRADURÍA DEL ESTADO CIVIL","1. SALUD: EPS, IPS o programas y proyectos de salud de la red pública y privada"]
["FAMILIAR","CDI - CENTRO DE DESARROLLO INFANTIL","DIMF - DESARROLLO INFANTIL EN MEDIO FAMILIAR (DIMF)","HCB - HOGAR COMUNITARIO DE BIENESTAR","FORMA DE ATENCIÓN 1","NIÑO O NIÑA DE 0 A 6 MESES","2. TARJETA DE IDENTIDAD","2. HOMBRE","2. POBLACIÓN NEGRA","NO","NO","2. RIESGO DE SOBREPESO","2. SOBREPESO PARA LA EDAD GESTACIONAL ","2. AHOGAMIENTO POR INMERSIÓN","2. FRACTURAS","2. EN LA VIVIENDA","2. CENTRO / PUESTO DE SALUD","2. DURANTE EL PARTO","2. VIOLENTA","2. HOMICIDIO","2.       DEFECTOS DE COAGULACIÓN Y OTRAS AFECCIONES HEMORRÁGICAS Y DE LA SANGRE","2. ACCESO CARNAL","2. INTEGRANTE DE LA FAMILIA POR FUERA DEL HOGAR","2. VIOLENCIA PSICOLÓGICA","2. VIOLENCIA PSICOLÓGICA","2. ESQUEMA DE VACUNACIÓN","2. SALUD: EPS, IPS o programas y proyectos de salud de la red pública y privada","2. PROTECCIÓN: Instituto Colombiano de Bienestar Familiar (Defensorías de Familia)"]
["COMUNITARIA","HI - HOGAR INFANTIL","HCB FAMI - HOGAR COMUNITARIO DE BIENESTAR FAMILIAR, FAMILIA, MUJER E INFANCIA","HCB AGRUPADO - HOGAR COMUNITARIO DE BIENESTAR AGRUPADO","FORMA DE ATENCIÓN 2","NIÑO O NIÑA DE 7 MESES A 12 MESES","3. CÉDULA CIUDADANÍA","3. INTERSEXUAL","3. POBLACIÓN AFROCOLOMBIANA",null,"INCOMPLETA","3. RIESGO DE DESNUTRICIÓN AGUDA","3. IMC ADECUADO PARA LA EDAD GESTACIONAL","3. CAÍDA DE ALTURA Y DE LA PROPIA ALTURA","3. TRAUMA CRANEO ENCEFÁLICO","3. EN LA RECLUSIÓN","3. CASA / DOMICILIO","3. EN PERIODO POS-PARTO","3. EN ESTUDIO","3. FEMINICIDIO","3.       DEFICIENCIAS NUTRICIONALES","3. EXPLOTACIÓN SEXUAL COMERCIAL","3. OTRO INTEGRANTE DEL HOGAR QUE NO SE CONSIDERA FAMILIA","3. VIOLENCIA FÍSICA","3. VIOLENCIA FÍSICA","3. ATENCIÓN EN SALUD","3. EDUCACIÓN: tránsito a modalidad o servicio de educación inicial","3. PROTECCIÓN:  Comisarías de Familia"]
["PROPIA_E_INTERCULTURAL","HOGAR EMPRESARIAL","EIR - EDUCACIÓN INICIAL RURAL","HCB INTEGRAL - HOGAR COMUNITARIO DE BIENESTAR INTEGRAL","FORMA DE ATENCIÓN 3","NIÑO O NIÑA DE 1 A 2 AÑOS","4. CEDULA DE EXTRANJERÍA",null,"4. POBLACIÓN RAIZAL DESCENDIENTE DEL ARCHIPIÉLAGO DE SAN ANDRÉS, PROVIDENCIA Y SANTA CATALINA",null,null,"4. SOBREPESO","4. BAJO PESO PARA LA EDAD GESTACIONAL","4. QUEMADURAS","4. QUEMADURAS","4. EN UN LUGAR DEL ESPACIO PÚBLICO","4. UNIDAD DE SERVICIO",null,"4. SIN INFORMACIÓN","4. ACCIDENTE DE TRANSITO","4.       DIABETES MELLITUS","4. MATRIMONIO INFANTIL Y UNIÓN TEMPRANA","4. PAREJA  DE LA MUJER GESTANTE","4. OMISIÓN O NEGLIGENCIA","4. VIOLENCIA ECONÓMICA Y PATRIMONIAL","4. EDUCACIÓN ","4. EDUCACIÓN: tránsito a educación formal","4. PROTECCIÓN: Inspección de Policía"]
[null,"HCB MÚLTIPLE - HOGAR INFANTIL DE BIENESTAR MÚLTIPLE ",null,null,null,"NIÑO O NIÑA DE 2 A 5 AÑOS","5. PASAPORTE",null,"5. POBLACIÓN GITANA O RROM",null,null,"5. DESNUTRICIÓN AGUDA MODERADA","5. NO APLICA","5. INTOXICACIONES",null,"5. EN EL LUGAR DE TRABAJO","5. LUGAR DE TRABAJO",null,null,"5. AHOGAMIENTO POR INMERSIÓN","5.       ENFERMEDAD POR EL VIH (SIDA)","5. ACOSO SEXUAL","5. CÓNYUGE O COMPAÑERO(A) PERMANENTE DE LA MUJER GESTANTE","5. CASTIGO FÍSICO","5. RIESGO DE FEMINICIDIO",null,"5. PROTECCIÓN: Instituto Colombiano de Bienestar Familiar (Defensorías de Familia)","5. JUSTICIA: Fiscalia"]
[null,"JARDIN SOCIAL",null,null,null,"","6. PERMISO ESPECIAL DE PERMANENCIA (PEP)",null,"6. POBLACIÓN PALENQUERA",null,null,"6. DESNUTRICIÓN AGUDA SEVERA ",null,"6. ELECTROCUCIÓN",null,"6. OTRO","6. VÍA PUBLICA",null,null,"6. ASFIXIA POR OBSTRUCCIÓN EN VÍAS RESPIRATORIAS (NARIZ Y BOCA)","6.       ENFERMEDADES DEL SISTEMA RESPIRATORIO, NEUMONÍA Y / O INFECCIÓN RESPIRATORIA AGUDA","6. OTRAS FORMAS DE VIOLENCIA SEXUAL","6. PERSONA AJENA AL HOGAR ","6. SÍNDROME DE BEBE ZARANDEADO","6. VIOLENCIA EN EL CONFLICTO ARMADO",null,"6. PROTECCIÓN:  Comisarías de Familia","6. JUSTICIA: Unidad de respuesta Inmediata -URI"]
[null,"DIER - DESARROLLO INFANTIL EN ESTABLECIMIENTOS DE RECLUSIÓN",null,null,null,"","7. NO TIENE",null,"7. NINGUNO",null,null,"7. OBESIDAD",null,"7. ACCIDENTE POR GOLPE CON OBJETO CONTUNDENTE",null,"7. SIN INFORMACIÓN","7. OTRO",null,null,"7. CAÍDA DE ALTURA Y DE LA PROPIA ALTURA","7.       ENFERMEDADES INMUNOPREVENIBLES",null,"7. TALENTO HUMANO DE LA UDS/UCA/UA",null,null,null,"7. PROTECCIÓN: Inspección de Policía","7. JUSTICIA: Policía Judicial"]
[null,null,null,null,null,"","8. SIN INFORMACIÓN",null,null,null,null,"8. NO APLICA",null,"8. SÍNDROME DE MUERTE SÚBITA DEL LACTANTE (SMSL)",null,null,"8. SIN INFORMACIÓN",null,null,"8. ELECTROCUCIÓN","8.       ENFERMEDADES TRANSMITIDAS POR VECTORES Y RABIA",null,"8. OTRA PERSONA EN LA UDS/UCA/UA",null,null,null,"8. JUSTICIA: Fiscalia","8. JUSTICIA: Policía Nacional"]
[null,null,null,null,null,null,null,null,null,null,null,null,null,"9. HERIDA CON OBJETO CORTO PUNZANTE",null,null,null,null,null,"9. INTOXICACIONES","9.       ENFERMEDADES DIARREICAS",null,"9. OTRO",null,null,null,"9. JUSTICIA: Unidad de respuesta Inmediata -URI","9. MINISTERIO PÚBLICO: Personería del pueblo y personerías distritales o municipales"]
[null,null,null,null,null,null,null,null,null,null,null,null,null,"10. ACCIDENTE POR AGRESIÓN DE UN ANIMAL",null,null,null,null,null,"10. QUEMADURAS","10.   FETO Y RECIÉN NACIDO AFECTADOS POR COMPLICACIONES Y TRAUMATISMO DEL NACIMIENTO",null,"10. SIN INFORMACIÓN ",null,null,null,"10. JUSTICIA: Policía Judicial","10. MINISTERIO PÚBLICO: Procuraduría General de la Nación"]
[null,null,null,null,null,null,null,null,null,null,null,null,null,"11. ACCIDENTE POR MORDEDURA DE NIÑO A NIÑO",null,null,null,null,null,"11. EN ESTUDIO","11.   HEPATITIS VIRAL Y SECUELAS",null,null,null,null,null,"11. JUSTICIA: Policía Nacional","11. AUTORIDAD TRADICIONAL"]
[null,null,null,null,null,null,null,null,null,null,null,null,null,"12. ACCIDENTES POR ARMA DE FUEGO",null,null,null,null,null,null,"12.   INSUFICIENCIA CARDÍACA",null,null,null,null,null,"12. MINISTERIO PÚBLICO: Personería del pueblo y personerías distritales o municipales","12. OTRO"]
[null,null,null,null,null,null,null,null,null,null,null,null,null,"13. ACCIDENTES DE TRÁNSITO",null,null,null,null,null,null,"13.   INSUFICIENCIA RENAL",null,null,null,null,null,"13. MINISTERIO PÚBLICO: Procuraduría General de la Nación"]
[null,null,null,null,null,null,null,null,null,null,null,null,null,"14. OTRO",null,null,null,null,null,null,"14.   LEUCEMIA",null,null,null,null,null,"14. AUTORIDAD TRADICIONAL"]
[null,null,null,null,null,null,null,null,null,null,null,null,null,null,null,null,null,null,null,null,"15.   MENINGITIS Y OTRAS ENFERMEDADES INFLAMATORIAS DEL SISTEMA NERVIOSO CENTRAL",null,null,null,null,null,"15. OTRO"]
[null,null,null,null,null,null,null,null,null,null,null,null,null,null,null,null,null,null,null,null,"16.   SEPTICEMIA"]
[null,null,null,null,null,null,null,null,null,null,null,null,null,null,null,null,null,null,null,null,"17.   SÍFILIS Y OTRAS ENFERMEDADES VENÉREAS"]
[null,null,null,null,null,null,null,null,null,null,null,null,null,null,null,null,null,null,null,null,"18.   SÍNDROME DE MUERTE SÚBITA DEL LACTANTE (SMSL)"]
[null,null,null,null,null,null,null,null,null,null,null,null,null,null,null,null,null,null,null,null,"19.   TUBERCULOSIS Y SECUELAS"]
[null,null,null,null,null,null,null,null,null,null,null,null,null,null,null,null,null,null,null,null,"20.   TUMOR"]
[null,null,null,null,null,null,null,null,null,null,null,null,null,null,null,null,null,null,null,null,"21.   OTRO"]
[null,null,null,null,null,null,null,null,null,null,null,null,null,null,null,null,null,null,null,null,"22.   NO APLICA"]